Workbook

Sheet Input data
A1: T | B1: KV | C1: LE | D1: SFA | E1: Upper | L1: KV | M1: =IF(Fit_index=1,"KV (J)",IF(Fit_index=2,"LE (mm)","SFA (%)")) -> KV (J)
A2: (°C) | B2: (J) | C2: (mm) | D2: (%) | E2: shelf? | L2: LE | M2: =IF(Fit_index=1,"Residuals (J)",IF(Fit_index=2,"Residuals (mm)","Residuals (%)")) -> Residuals (J)
A3: -80 | B3: 2.4 | C3: 0.05842 | D3: 0 | E3: =IF(ISBLANK(KV_data),"",IF(SFA_data>=95,"YES","")) ->  | F3: =IF(AND(Fit_index=1,SFA_data>=95),KV_data,IF(AND(Fit_index=2,SFA_data>=95),LE_data,IF(AND(Fit_index=3,SFA_data>=95),SFA_data,""))) ->  | H3: Variable to fit: | I3: 1 | L3: SFA
A4: -50 | B4: 4.13 | C4: 0.04572 | D4: 0.1546246837
A5: -35 | B5: 4.13 | C5: 0.05842 | D5: 6.254382275
A6: -15 | B6: 10.21 | C6: 0.07366 | D6: 16.17027255 | H6: Dataset ID: | I6: Sample dataset #1 (X52 steel) - KV
A7: 0 | B7: 27.99 | C7: 0.48006 | D7: 27.70631594
A8: 10 | B8: 34.25 | C8: 0.67564 | D8: 39.15653829
A9: 21 | B9: 48.86 | C9: 0.84836 | D9: 52.96823983
A10: 40 | B10: 61.88 | C10: 1.13538 | D10: 79.07271345
A11: 76 | B11: 74.29 | C11: 1.38684 | D11: 100 | E11: YES | F11: 74.29
A12: 100 | B12: 75.22 | C12: 1.41478 | D12: 100 | E12: YES | F12: 75.22
A13: 148 | B13: 71.5 | C13: 1.5 | D13: 100 | E13: YES | F13: 71.5
A14: 198 | B14: 69.4 | C14: 1.45 | D14: 100 | E14: YES | F14: 69.4
F34: Manual entries
A35: US = | B35: =IF(ISBLANK($F$35),IF(Fit_index=3,100,AVERAGEIF($E3:$E32,"YES",$F3:$F32)),$F$35) -> 72.6025 | C35: =IF(Fit_index=1,"J (upper shelf)",IF(Fit_index=2,"mm (upper shelf)","% (upper shelf)")) -> J (upper shelf) | E35: =(US+LS)/2 -> 37.30125 | G35: =IF(Fit_index=1,"J (upper shelf)",IF(Fit_index=2,"mm (upper shelf)","% (upper shelf)")) -> J (upper shelf)
A36: LS = | B36: =IF(ISBLANK($F$36),IF(Fit_index=1,2,0),$F$36) -> 2 | C36: =IF(Fit_index=1,"J (lower shelf)",IF(Fit_index=2,"mm (lower shelf)","% (lower shelf)")) -> J (lower shelf) | E36: =(US-LS)/2 -> 35.30125 | G36: =IF(Fit_index=1,"J (lower shelf)",IF(Fit_index=2,"mm (lower shelf)","% (lower shelf)")) -> J (lower shelf)

Sheet HT
A1: T | B1: =IF(Fit_index=1,"KV",IF(Fit_index=2,"LE","SFA")) -> KV | C1: Fit | D1: Residual | T1: T (°C) | U1: Curve
A2: (°C) | B2: =IF(Fit_index=1,"(J)",IF(Fit_index=2,"(mm)","(%)")) -> (J) | C2: =IF(Fit_index=1,"(J)",IF(Fit_index=2,"(mm)","(%)")) -> (J) | D2: =IF(Fit_index=1,"(J)",IF(Fit_index=2,"(mm)","(%)")) -> (J) | T2: -100 | U2: =(LS+US)/2+(US-LS)/2*TANH(($T2-$B$35)/$B$36) -> 2.043870095
A3: =IF(ISBLANK(Temperatures),NA(),Temperatures) -> -80 | B3: =IF(ISBLANK(KV_data),NA(),IF(Fit_index=1,KV_data,IF(Fit_index=2,LE_data,SFA_data))) -> 2.4 | C3: =IF(ISBLANK(KV_data),"",(LS+US)/2+(US-LS)/2*TANH((Temperatures-DBTT_TANH)/C_TANH)) -> 2.165096 | D3: =IF(ISBLANK(KV_data),"",$B3-$C3) -> 0.2349039998 | T3: =T2+10 -> -90 | U3: 2.085127904
A4: -50 | B4: 4.13 | C4: 3.190797931 | D4: 0.9392020693 | T4: =T3+10 -> -80 | U4: 2.165096
A5: -35 | B5: 4.13 | C5: 5.131542666 | D5: -1.001542666 | T5: -70 | U5: 2.319844408
A6: -15 | B6: 10.21 | C6: 12.51358028 | D6: -2.303580279 | T6: -60 | U6: 2.618368793
A7: 0 | B7: 27.99 | C7: 24.68314561 | D7: 3.306854389 | T7: -50 | U7: 3.190797931
A8: 10 | B8: 34.25 | C8: 35.81258994 | D8: -1.562589937 | T8: -40 | U8: 4.275896961
A9: 21 | B9: 48.86 | C9: 48.31441246 | D9: 0.5455875427 | T9: -30 | U9: 6.288685184
A10: 40 | B10: 61.88 | C10: 63.46539165 | D10: -1.585391655 | T10: -20 | U10: 9.876368853
A11: 76 | B11: 74.29 | C11: 71.65244686 | D11: 2.637553142 | T11: -10 | U11: 15.83898437
A12: 100 | B12: 75.22 | C12: 72.40713334 | D12: 2.812866659 | T12: 0 | U12: 24.68314561
A13: 148 | B13: 71.5 | C13: 72.59439322 | D13: -1.094393217 | T13: 10 | U13: 35.81258994
A14: 198 | B14: 69.4 | C14: 72.60220616 | D14: -3.202206161 | T14: 20 | U14: 47.24660676
T15: 30 | U15: 56.7889751
T16: 40 | U16: 63.46539165
T17: 50 | U17: 67.58137267
T18: 60 | U18: 69.92402999
T19: 70 | U19: 71.19711935
T20: 80 | U20: 71.8716145
T21: 90 | U21: 72.22416393
T22: 100 | U22: 72.40713334
T23: 110 | U23: 72.50174276
T24: 120 | U24: 72.55056986
T25: 130 | U25: 72.57574425
T26: 140 | U26: 72.58871713
T27: 150 | U27: 72.59540057
T28: 160 | U28: 72.59884332
T29: 170 | U29: 72.60061661
T30: 180 | U30: 72.60152996
T31: 190 | U31: 72.60200039
T32: 200 | U32: 72.60224268
T33: =T32+10 -> 210 | U33: 72.60236747
T34: 220 | U34: =(LS+US)/2+(US-LS)/2*TANH(($T34-$B$35)/$B$36) -> 72.60243174
A35: DBTT = | B35: 11.27188439 | C35: °C | T35: 230 | U35: 72.60246484
A36: C = | B36: 30.14286625 | C36: °C | T36: 240 | U36: 72.60248189
E37: =DBTT_TANH -> 11.27188439 | F37: 0 | T37: 250 | U37: 72.60249067
E38: =E37 -> 11.27188439 | F38: =(LS+US)/2 -> 37.30125 | T38: 260 | U38: 72.6024952
A39: SSR = | B39: =SUMSQ(Residual_TANH) -> 49.75568219 | C39: (sum of square residuals) | F39: Characteristic T | T39: 270 | U39: 72.60249753
A40: df = | B40: =COUNT(Fit_TANH)-2 -> 10 | C40: (degrees of freedom) | F40: =IF(Fit_index=1,"KV (J)",IF(Fit_index=2,"LE (mm)","SFA (%)")) -> KV (J) | G40: T (°C) | T40: 280 | U40: 72.60249873
A41: RMSE = | B41: =SQRT(SSR_TANH/df_TANH) -> 2.230598175 | C41: =IF('Input data'!$I$3=1,"J (root mean square error)",IF('Input data'!$I$3=2,"mm (root mean square error)","% (root mean square error)")) -> J (root mean square error) | F41: 28 | G41: =IF(ISBLANK(F41),"",IFERROR(DBTT_TANH+C_TANH*ATANH((F41-((LS+US)/2))/((US-LS)/2)),"N/A")) -> 3.137931807 | T41: 290 | U41: 72.60249934
F42: 41 | G42: =IF(ISBLANK(F42),"",IFERROR(DBTT_TANH+C_TANH*ATANH((F42-((LS+US)/2))/((US-LS)/2)),"N/A")) -> 14.44178981 | T42: 300 | U42: 72.60249966
T43: 310 | U43: 72.60249983
T44: 320 | U44: 72.60249991
B45: AIC = | C45: =2*(COUNT(B35:B37)+1)+COUNT(Temperatures)*LN(SSR_TANH/COUNT(Temperatures)) -> 23.06661627 | D45: (Akaike Information Criterion) | T45: 330 | U45: 72.60249995
B46: BIC = | C46: =(COUNT(B35:B37)+1)*LN(COUNT(Temperatures))+COUNT(Temperatures)*LN(SSR_TANH/COUNT(Temperatures)) -> 24.52133621 | D46: (Bayesian Information Criterion) | T46: 340 | U46: 72.60249998
T47: 350 | U47: 72.60249999
T48: 360 | U48: 72.60249999
T49: 370 | U49: 72.6025
T50: 380 | U50: 72.6025
T51: 390 | U51: 72.6025
T52: 400 | U52: 72.6025
U57: =NORMSINV(0.05) -> -1.644853627 | V57: =PERCENTILE(#REF!,0.05) -> 
U58: =NORMSINV(0.95) -> 1.644853627 | V58: =PERCENTILE(#REF!,0.95) -> 
Q88: 0 | R88: 0
Q89: 100 | R89: 100

Sheet AHT
A1: T | B1: =IF('Input data'!$I$3=1,"KV",IF('Input data'!$I$3=2,"LE","SFA")) -> KV | C1: Fit | D1: Residual | T1: T (°C) | U1: Curve
A2: (°C) | B2: =IF('Input data'!$I$3=1,"(J)",IF('Input data'!$I$3=2,"(mm)","(%)")) -> (J) | C2: =IF('Input data'!$I$3=1,"(J)",IF('Input data'!$I$3=2,"(mm)","(%)")) -> (J) | D2: =IF('Input data'!$I$3=1,"(J)",IF('Input data'!$I$3=2,"(mm)","(%)")) -> (J) | T2: -200 | U2: =(LS+US)/2+(US-LS)/2*TANH(($T2-$B$35)/($B$36+$B$37*$T2)) -> 72.60126047
A3: =IF(ISBLANK('Input data'!$A3),NA(),'Input data'!$A3) -> -80 | B3: =IF(ISBLANK('Input data'!$A3),NA(),IF('Input data'!$I$3=1,'Input data'!$B3,IF('Input data'!$I$3=2,'Input data'!$C3,'Input data'!$D3))) -> 2.4 | C3: =IF(ISBLANK('Input data'!$B3),"",(LS+US)/2+(US-LS)/2*TANH(($A3-DBTT_ATANH)/(C_ATANH+D_ATANH*$A3))) -> 2 | D3: =IF(ISBLANK('Input data'!$B3),"",$B3-$C3) -> 0.4 | T3: =T2+10 -> -190 | U3: 72.60167639
A4: =IF(ISBLANK('Input data'!$A4),NA(),'Input data'!$A4) -> -50 | B4: =IF(ISBLANK('Input data'!$A4),NA(),IF('Input data'!$I$3=1,'Input data'!$B4,IF('Input data'!$I$3=2,'Input data'!$C4,'Input data'!$D4))) -> 4.13 | C4: =IF(ISBLANK('Input data'!$B4),"",(LS+US)/2+(US-LS)/2*TANH(($A4-DBTT_ATANH)/(C_ATANH+D_ATANH*$A4))) -> 2.00069152 | D4: =IF(ISBLANK('Input data'!$B4),"",$B4-$C4) -> 2.12930848 | T4: =T3+10 -> -180 | U4: 72.60199571
A5: =IF(ISBLANK('Input data'!$A5),NA(),'Input data'!$A5) -> -35 | B5: =IF(ISBLANK('Input data'!$A5),NA(),IF('Input data'!$I$3=1,'Input data'!$B5,IF('Input data'!$I$3=2,'Input data'!$C5,'Input data'!$D5))) -> 4.13 | C5: =IF(ISBLANK('Input data'!$B5),"",(LS+US)/2+(US-LS)/2*TANH(($A5-DBTT_ATANH)/(C_ATANH+D_ATANH*$A5))) -> 2.276686078 | D5: =IF(ISBLANK('Input data'!$B5),"",$B5-$C5) -> 1.853313922 | T5: -170 | U5: 72.60222312
A6: =IF(ISBLANK('Input data'!$A6),NA(),'Input data'!$A6) -> -15 | B6: =IF(ISBLANK('Input data'!$A6),NA(),IF('Input data'!$I$3=1,'Input data'!$B6,IF('Input data'!$I$3=2,'Input data'!$C6,'Input data'!$D6))) -> 10.21 | C6: =IF(ISBLANK('Input data'!$B6),"",(LS+US)/2+(US-LS)/2*TANH(($A6-DBTT_ATANH)/(C_ATANH+D_ATANH*$A6))) -> 11.60647791 | D6: =IF(ISBLANK('Input data'!$B6),"",$B6-$C6) -> -1.396477911 | T6: -160 | U6: 72.60236914
A7: =IF(ISBLANK('Input data'!$A7),NA(),'Input data'!$A7) -> 0 | B7: =IF(ISBLANK('Input data'!$A7),NA(),IF('Input data'!$I$3=1,'Input data'!$B7,IF('Input data'!$I$3=2,'Input data'!$C7,'Input data'!$D7))) -> 27.99 | C7: =IF(ISBLANK('Input data'!$B7),"",(LS+US)/2+(US-LS)/2*TANH(($A7-DBTT_ATANH)/(C_ATANH+D_ATANH*$A7))) -> 32.18696142 | D7: =IF(ISBLANK('Input data'!$B7),"",$B7-$C7) -> -4.196961419 | T7: -150 | U7: 72.60245007
A8: =IF(ISBLANK('Input data'!$A8),NA(),'Input data'!$A8) -> 10 | B8: =IF(ISBLANK('Input data'!$A8),NA(),IF('Input data'!$I$3=1,'Input data'!$B8,IF('Input data'!$I$3=2,'Input data'!$C8,'Input data'!$D8))) -> 34.25 | C8: =IF(ISBLANK('Input data'!$B8),"",(LS+US)/2+(US-LS)/2*TANH(($A8-DBTT_ATANH)/(C_ATANH+D_ATANH*$A8))) -> 45.24102737 | D8: =IF(ISBLANK('Input data'!$B8),"",$B8-$C8) -> -10.99102737 | T8: -140 | U8: 72.60248618
A9: =IF(ISBLANK('Input data'!$A9),NA(),'Input data'!$A9) -> 21 | B9: =IF(ISBLANK('Input data'!$A9),NA(),IF('Input data'!$I$3=1,'Input data'!$B9,IF('Input data'!$I$3=2,'Input data'!$C9,'Input data'!$D9))) -> 48.86 | C9: =IF(ISBLANK('Input data'!$B9),"",(LS+US)/2+(US-LS)/2*TANH(($A9-DBTT_ATANH)/(C_ATANH+D_ATANH*$A9))) -> 55.11071054 | D9: =IF(ISBLANK('Input data'!$B9),"",$B9-$C9) -> -6.250710538 | T9: -130 | U9: 72.60249771
A10: =IF(ISBLANK('Input data'!$A10),NA(),'Input data'!$A10) -> 40 | B10: =IF(ISBLANK('Input data'!$A10),NA(),IF('Input data'!$I$3=1,'Input data'!$B10,IF('Input data'!$I$3=2,'Input data'!$C10,'Input data'!$D10))) -> 61.88 | C10: =IF(ISBLANK('Input data'!$B10),"",(LS+US)/2+(US-LS)/2*TANH(($A10-DBTT_ATANH)/(C_ATANH+D_ATANH*$A10))) -> 63.85917595 | D10: =IF(ISBLANK('Input data'!$B10),"",$B10-$C10) -> -1.979175954 | T10: -120 | U10: 72.60249985
A11: =IF(ISBLANK('Input data'!$A11),NA(),'Input data'!$A11) -> 76 | B11: =IF(ISBLANK('Input data'!$A11),NA(),IF('Input data'!$I$3=1,'Input data'!$B11,IF('Input data'!$I$3=2,'Input data'!$C11,'Input data'!$D11))) -> 74.29 | C11: =IF(ISBLANK('Input data'!$B11),"",(LS+US)/2+(US-LS)/2*TANH(($A11-DBTT_ATANH)/(C_ATANH+D_ATANH*$A11))) -> 69.23582693 | D11: =IF(ISBLANK('Input data'!$B11),"",$B11-$C11) -> 5.054173073 | T11: -110 | U11: 72.6025
A12: =IF(ISBLANK('Input data'!$A12),NA(),'Input data'!$A12) -> 100 | B12: =IF(ISBLANK('Input data'!$A12),NA(),IF('Input data'!$I$3=1,'Input data'!$B12,IF('Input data'!$I$3=2,'Input data'!$C12,'Input data'!$D12))) -> 75.22 | C12: =IF(ISBLANK('Input data'!$B12),"",(LS+US)/2+(US-LS)/2*TANH(($A12-DBTT_ATANH)/(C_ATANH+D_ATANH*$A12))) -> 70.44166318 | D12: =IF(ISBLANK('Input data'!$B12),"",$B12-$C12) -> 4.778336816 | T12: -100 | U12: 72.6025
A13: =IF(ISBLANK('Input data'!$A13),NA(),'Input data'!$A13) -> 148 | B13: =IF(ISBLANK('Input data'!$A13),NA(),IF('Input data'!$I$3=1,'Input data'!$B13,IF('Input data'!$I$3=2,'Input data'!$C13,'Input data'!$D13))) -> 71.5 | C13: =IF(ISBLANK('Input data'!$B13),"",(LS+US)/2+(US-LS)/2*TANH(($A13-DBTT_ATANH)/(C_ATANH+D_ATANH*$A13))) -> 71.43624221 | D13: =IF(ISBLANK('Input data'!$B13),"",$B13-$C13) -> 0.06375779211 | T13: -90 | U13: 72.6025
A14: =IF(ISBLANK('Input data'!$A14),NA(),'Input data'!$A14) -> 198 | B14: =IF(ISBLANK('Input data'!$A14),NA(),IF('Input data'!$I$3=1,'Input data'!$B14,IF('Input data'!$I$3=2,'Input data'!$C14,'Input data'!$D14))) -> 69.4 | C14: =IF(ISBLANK('Input data'!$B14),"",(LS+US)/2+(US-LS)/2*TANH(($A14-DBTT_ATANH)/(C_ATANH+D_ATANH*$A14))) -> 71.83615603 | D14: =IF(ISBLANK('Input data'!$B14),"",$B14-$C14) -> -2.436156026 | T14: -80 | U14: 2
A15: =IF(ISBLANK('Input data'!$A15),NA(),'Input data'!$A15) ->  | B15: =IF(ISBLANK('Input data'!$A15),NA(),IF('Input data'!$I$3=1,'Input data'!$B15,IF('Input data'!$I$3=2,'Input data'!$C15,'Input data'!$D15))) ->  | C15: =IF(ISBLANK('Input data'!$B15),"",(LS+US)/2+(US-LS)/2*TANH(($A15-DBTT_ATANH)/(C_ATANH+D_ATANH*$A15))) ->  | D15: =IF(ISBLANK('Input data'!$B15),"",$B15-$C15) ->  | T15: -70 | U15: 2
A16: =IF(ISBLANK('Input data'!$A16),NA(),'Input data'!$A16) ->  | B16: =IF(ISBLANK('Input data'!$A16),NA(),IF('Input data'!$I$3=1,'Input data'!$B16,IF('Input data'!$I$3=2,'Input data'!$C16,'Input data'!$D16))) ->  | C16: =IF(ISBLANK('Input data'!$B16),"",(LS+US)/2+(US-LS)/2*TANH(($A16-DBTT_ATANH)/(C_ATANH+D_ATANH*$A16))) ->  | D16: =IF(ISBLANK('Input data'!$B16),"",$B16-$C16) ->  | T16: -60 | U16: 2.000000086
A17: =IF(ISBLANK('Input data'!$A17),NA(),'Input data'!$A17) ->  | B17: =IF(ISBLANK('Input data'!$A17),NA(),IF('Input data'!$I$3=1,'Input data'!$B17,IF('Input data'!$I$3=2,'Input data'!$C17,'Input data'!$D17))) ->  | C17: =IF(ISBLANK('Input data'!$B17),"",(LS+US)/2+(US-LS)/2*TANH(($A17-DBTT_ATANH)/(C_ATANH+D_ATANH*$A17))) ->  | D17: =IF(ISBLANK('Input data'!$B17),"",$B17-$C17) ->  | T17: -50 | U17: 2.00069152
A18: =IF(ISBLANK('Input data'!$A18),NA(),'Input data'!$A18) ->  | B18: =IF(ISBLANK('Input data'!$A18),NA(),IF('Input data'!$I$3=1,'Input data'!$B18,IF('Input data'!$I$3=2,'Input data'!$C18,'Input data'!$D18))) ->  | C18: =IF(ISBLANK('Input data'!$B18),"",(LS+US)/2+(US-LS)/2*TANH(($A18-DBTT_ATANH)/(C_ATANH+D_ATANH*$A18))) ->  | D18: =IF(ISBLANK('Input data'!$B18),"",$B18-$C18) ->  | T18: -40 | U18: 2.061992641
A19: =IF(ISBLANK('Input data'!$A19),NA(),'Input data'!$A19) ->  | B19: =IF(ISBLANK('Input data'!$A19),NA(),IF('Input data'!$I$3=1,'Input data'!$B19,IF('Input data'!$I$3=2,'Input data'!$C19,'Input data'!$D19))) ->  | C19: =IF(ISBLANK('Input data'!$B19),"",(LS+US)/2+(US-LS)/2*TANH(($A19-DBTT_ATANH)/(C_ATANH+D_ATANH*$A19))) ->  | D19: =IF(ISBLANK('Input data'!$B19),"",$B19-$C19) ->  | T19: -30 | U19: 2.909573977
A20: =IF(ISBLANK('Input data'!$A20),NA(),'Input data'!$A20) ->  | B20: =IF(ISBLANK('Input data'!$A20),NA(),IF('Input data'!$I$3=1,'Input data'!$B20,IF('Input data'!$I$3=2,'Input data'!$C20,'Input data'!$D20))) ->  | C20: =IF(ISBLANK('Input data'!$B20),"",(LS+US)/2+(US-LS)/2*TANH(($A20-DBTT_ATANH)/(C_ATANH+D_ATANH*$A20))) ->  | D20: =IF(ISBLANK('Input data'!$B20),"",$B20-$C20) ->  | T20: -20 | U20: 7.160272041
A21: =IF(ISBLANK('Input data'!$A21),NA(),'Input data'!$A21) ->  | B21: =IF(ISBLANK('Input data'!$A21),NA(),IF('Input data'!$I$3=1,'Input data'!$B21,IF('Input data'!$I$3=2,'Input data'!$C21,'Input data'!$D21))) ->  | C21: =IF(ISBLANK('Input data'!$B21),"",(LS+US)/2+(US-LS)/2*TANH(($A21-DBTT_ATANH)/(C_ATANH+D_ATANH*$A21))) ->  | D21: =IF(ISBLANK('Input data'!$B21),"",$B21-$C21) ->  | T21: -10 | U21: 17.6573716
A22: =IF(ISBLANK('Input data'!$A22),NA(),'Input data'!$A22) ->  | B22: =IF(ISBLANK('Input data'!$A22),NA(),IF('Input data'!$I$3=1,'Input data'!$B22,IF('Input data'!$I$3=2,'Input data'!$C22,'Input data'!$D22))) ->  | C22: =IF(ISBLANK('Input data'!$B22),"",(LS+US)/2+(US-LS)/2*TANH(($A22-DBTT_ATANH)/(C_ATANH+D_ATANH*$A22))) ->  | D22: =IF(ISBLANK('Input data'!$B22),"",$B22-$C22) ->  | T22: 0 | U22: 32.18696142
A23: =IF(ISBLANK('Input data'!$A23),NA(),'Input data'!$A23) ->  | B23: =IF(ISBLANK('Input data'!$A23),NA(),IF('Input data'!$I$3=1,'Input data'!$B23,IF('Input data'!$I$3=2,'Input data'!$C23,'Input data'!$D23))) ->  | C23: =IF(ISBLANK('Input data'!$B23),"",(LS+US)/2+(US-LS)/2*TANH(($A23-DBTT_ATANH)/(C_ATANH+D_ATANH*$A23))) ->  | D23: =IF(ISBLANK('Input data'!$B23),"",$B23-$C23) ->  | T23: 10 | U23: 45.24102737
A24: =IF(ISBLANK('Input data'!$A24),NA(),'Input data'!$A24) ->  | B24: =IF(ISBLANK('Input data'!$A24),NA(),IF('Input data'!$I$3=1,'Input data'!$B24,IF('Input data'!$I$3=2,'Input data'!$C24,'Input data'!$D24))) ->  | C24: =IF(ISBLANK('Input data'!$B24),"",(LS+US)/2+(US-LS)/2*TANH(($A24-DBTT_ATANH)/(C_ATANH+D_ATANH*$A24))) ->  | D24: =IF(ISBLANK('Input data'!$B24),"",$B24-$C24) ->  | T24: 20 | U24: 54.39827959
A25: =IF(ISBLANK('Input data'!$A25),NA(),'Input data'!$A25) ->  | B25: =IF(ISBLANK('Input data'!$A25),NA(),IF('Input data'!$I$3=1,'Input data'!$B25,IF('Input data'!$I$3=2,'Input data'!$C25,'Input data'!$D25))) ->  | C25: =IF(ISBLANK('Input data'!$B25),"",(LS+US)/2+(US-LS)/2*TANH(($A25-DBTT_ATANH)/(C_ATANH+D_ATANH*$A25))) ->  | D25: =IF(ISBLANK('Input data'!$B25),"",$B25-$C25) ->  | T25: 30 | U25: 60.21826335
A26: =IF(ISBLANK('Input data'!$A26),NA(),'Input data'!$A26) ->  | B26: =IF(ISBLANK('Input data'!$A26),NA(),IF('Input data'!$I$3=1,'Input data'!$B26,IF('Input data'!$I$3=2,'Input data'!$C26,'Input data'!$D26))) ->  | C26: =IF(ISBLANK('Input data'!$B26),"",(LS+US)/2+(US-LS)/2*TANH(($A26-DBTT_ATANH)/(C_ATANH+D_ATANH*$A26))) ->  | D26: =IF(ISBLANK('Input data'!$B26),"",$B26-$C26) ->  | T26: 40 | U26: 63.85917595
A27: =IF(ISBLANK('Input data'!$A27),NA(),'Input data'!$A27) ->  | B27: =IF(ISBLANK('Input data'!$A27),NA(),IF('Input data'!$I$3=1,'Input data'!$B27,IF('Input data'!$I$3=2,'Input data'!$C27,'Input data'!$D27))) ->  | C27: =IF(ISBLANK('Input data'!$B27),"",(LS+US)/2+(US-LS)/2*TANH(($A27-DBTT_ATANH)/(C_ATANH+D_ATANH*$A27))) ->  | D27: =IF(ISBLANK('Input data'!$B27),"",$B27-$C27) ->  | T27: 50 | U27: 66.18344112
A28: =IF(ISBLANK('Input data'!$A28),NA(),'Input data'!$A28) ->  | B28: =IF(ISBLANK('Input data'!$A28),NA(),IF('Input data'!$I$3=1,'Input data'!$B28,IF('Input data'!$I$3=2,'Input data'!$C28,'Input data'!$D28))) ->  | C28: =IF(ISBLANK('Input data'!$B28),"",(LS+US)/2+(US-LS)/2*TANH(($A28-DBTT_ATANH)/(C_ATANH+D_ATANH*$A28))) ->  | D28: =IF(ISBLANK('Input data'!$B28),"",$B28-$C28) ->  | T28: 60 | U28: 67.71643901
A29: =IF(ISBLANK('Input data'!$A29),NA(),'Input data'!$A29) ->  | B29: =IF(ISBLANK('Input data'!$A29),NA(),IF('Input data'!$I$3=1,'Input data'!$B29,IF('Input data'!$I$3=2,'Input data'!$C29,'Input data'!$D29))) ->  | C29: =IF(ISBLANK('Input data'!$B29),"",(LS+US)/2+(US-LS)/2*TANH(($A29-DBTT_ATANH)/(C_ATANH+D_ATANH*$A29))) ->  | D29: =IF(ISBLANK('Input data'!$B29),"",$B29-$C29) ->  | T29: 70 | U29: 68.76340962
A30: =IF(ISBLANK('Input data'!$A30),NA(),'Input data'!$A30) ->  | B30: =IF(ISBLANK('Input data'!$A30),NA(),IF('Input data'!$I$3=1,'Input data'!$B30,IF('Input data'!$I$3=2,'Input data'!$C30,'Input data'!$D30))) ->  | C30: =IF(ISBLANK('Input data'!$B30),"",(LS+US)/2+(US-LS)/2*TANH(($A30-DBTT_ATANH)/(C_ATANH+D_ATANH*$A30))) ->  | D30: =IF(ISBLANK('Input data'!$B30),"",$B30-$C30) ->  | T30: 80 | U30: 69.50248405
A31: =IF(ISBLANK('Input data'!$A31),NA(),'Input data'!$A31) ->  | B31: =IF(ISBLANK('Input data'!$A31),NA(),IF('Input data'!$I$3=1,'Input data'!$B31,IF('Input data'!$I$3=2,'Input data'!$C31,'Input data'!$D31))) ->  | C31: =IF(ISBLANK('Input data'!$B31),"",(LS+US)/2+(US-LS)/2*TANH(($A31-DBTT_ATANH)/(C_ATANH+D_ATANH*$A31))) ->  | D31: =IF(ISBLANK('Input data'!$B31),"",$B31-$C31) ->  | T31: 90 | U31: 70.04007577
A32: =IF(ISBLANK('Input data'!$A32),NA(),'Input data'!$A32) ->  | B32: =IF(ISBLANK('Input data'!$A32),NA(),IF('Input data'!$I$3=1,'Input data'!$B32,IF('Input data'!$I$3=2,'Input data'!$C32,'Input data'!$D32))) ->  | C32: =IF(ISBLANK('Input data'!$B32),"",(LS+US)/2+(US-LS)/2*TANH(($A32-DBTT_ATANH)/(C_ATANH+D_ATANH*$A32))) ->  | D32: =IF(ISBLANK('Input data'!$B32),"",$B32-$C32) ->  | T32: 100 | U32: 70.44166318
T33: =T32+10 -> 110 | U33: 70.74878412
T34: 120 | U34: =(LS+US)/2+(US-LS)/2*TANH(($T34-$B$35)/($B$36+$B$37*$T34)) -> 70.98857124
A35: DBTT = | B35: 3.617416278 | C35: °C | T35: 130 | U35: 71.17923603
A36: C = | B36: 24.79344568 | C36: °C | T36: 140 | U36: 71.33331009
A37: D = | B37: 0.3099180621 | E37: =DBTT_ATANH -> 3.617416278 | F37: 0 | T37: 150 | U37: 71.45961404
E38: =E37 -> 3.617416278 | F38: =(LS+US)/2 -> 37.30125 | T38: 160 | U38: 71.56448537
A39: SSR = | B39: =SUMSQ(Residual_ATANH) -> 245.8006545 | C39: (sum of square residuals) | F39: Characteristic T | T39: 170 | U39: 71.65256314
A40: df = | B40: =COUNT(Fit_ATANH)-3 -> 9 | C40: (degrees of freedom) | F40: =IF(Fit_index=1,"KV (J)",IF(Fit_index=2,"LE (mm)","SFA (%)")) -> KV (J) | G40: T (°C) | T40: 180 | U40: 71.7273012
A41: RMSE = | B41: =SQRT(SSR_ATANH/df_ATANH) -> 5.226010318 | C41: =IF('Input data'!$I$3=1,"J (root mean square error)",IF('Input data'!$I$3=2,"mm (root mean square error)","% (root mean square error)")) -> J (root mean square error) | F41: 28 | G41: =IF(ISBLANK($F41),"",IFERROR((DBTT_ATANH+C_ATANH*$I41)/(1-D_ATANH*$I41),"N/A")) -> -2.835849748 | I41: =ATANH(($F41-A)/B) -> -0.2698466866 | T41: 190 | U41: 71.79131095
F42: 41 | G42: =IF(ISBLANK($F42),"",IFERROR((DBTT_ATANH+C_ATANH*$I42)/(1-D_ATANH*$I42),"N/A")) -> 6.434473365 | I42: =ATANH(($F42-A)/B) -> 0.1051627074 | T42: 200 | U42: 71.84659478
T43: 210 | U43: 71.89470806
T44: 220 | U44: 71.9368732
B45: AIC = | C45: =2*(COUNT(B35:B37)+1)+COUNT(Temperatures)*LN(SSR_ATANH/COUNT(Temperatures)) -> 44.23537052 | D45: (Akaike Information Criterion) | T45: 230 | U45: 71.97406149
B46: BIC = | C46: =(COUNT(B35:B37)+1)*LN(COUNT(Temperatures))+COUNT(Temperatures)*LN(SSR_ATANH/COUNT(Temperatures)) -> 46.17499712 | D46: (Bayesian Information Criterion) | T46: 240 | U46: 72.0070524
T47: 250 | U47: 72.03647729
T48: 260 | U48: 72.06285196
T49: 270 | U49: 72.08660116
T50: 280 | U50: 72.10807726
T51: 290 | U51: 72.12757461
T52: 300 | U52: 72.14534068
U57: =NORMSINV(0.05) -> -1.644853627 | V57: =PERCENTILE($AT$3:$AT$32,0.05) -> 
U58: =NORMSINV(0.95) -> 1.644853627 | V58: =PERCENTILE(AT3:AT32,0.95) -> 
C142: 0

Sheet BUR
A1: x | B1: =IF('Input data'!$I$3=1,"KV",IF('Input data'!$I$3=2,"LE","SFA")) -> KV | C1: x(T) | D1: Fit | E1: Residual | U1: T (°C) | V1: x(T) | W1: Fit
A2: (°C) | B2: =IF('Input data'!$I$3=1,"(J)",IF('Input data'!$I$3=2,"(mm)","(%)")) -> (J) | D2: =IF('Input data'!$I$3=1,"(J)",IF('Input data'!$I$3=2,"(mm)","(%)")) -> (J) | E2: =IF('Input data'!$I$3=1,"(J)",IF('Input data'!$I$3=2,"(mm)","(%)")) -> (J) | U2: -100 | V2: =IFERROR((1+EXP(-k_Burr*($U2-T0_Burr)))^(-m_Burr),0) -> 8.246938197e-05 | W2: =LS+(US-LS)*$V2 -> 2.005822545
A3: =IF(ISBLANK('Input data'!$A3),NA(),'Input data'!$A3) -> -80 | B3: =IF(ISBLANK('Input data'!$A3),NA(),IF('Input data'!$I$3=1,'Input data'!$B3,IF('Input data'!$I$3=2,'Input data'!$C3,'Input data'!$D3))) -> 2.4 | C3: =IF(ISBLANK('Input data'!$B3),"",IFERROR((1+EXP(-$B$36*($A3-$B$35)))^-$B$37,0)) -> 0.0005346102408 | D3: =IF(ISBLANK('Input data'!$B3),"",LS+(US-LS)*Xi_function) -> 2.03774482 | E3: =IF(ISBLANK('Input data'!$B3),"",IFERROR($B3-Fit_Burr,0)) -> 0.3622551805 | U3: =$U2+10 -> -90 | V3: 0.0002102852492 | W3: 2.014846664
A4: =IF(ISBLANK('Input data'!$A4),NA(),'Input data'!$A4) -> -50 | B4: =IF(ISBLANK('Input data'!$A4),NA(),IF('Input data'!$I$3=1,'Input data'!$B4,IF('Input data'!$I$3=2,'Input data'!$C4,'Input data'!$D4))) -> 4.13 | C4: =IF(ISBLANK('Input data'!$B4),"",IFERROR((1+EXP(-$B$36*($A4-$B$35)))^-$B$37,0)) -> 0.008353291934 | D4: =IF(ISBLANK('Input data'!$B4),"",LS+(US-LS)*Xi_function) -> 2.589763294 | E4: =IF(ISBLANK('Input data'!$B4),"",IFERROR($B4-Fit_Burr,0)) -> 1.540236706 | U4: -80 | V4: 0.0005346102408 | W4: 2.03774482
A5: =IF(ISBLANK('Input data'!$A5),NA(),'Input data'!$A5) -> -35 | B5: =IF(ISBLANK('Input data'!$A5),NA(),IF('Input data'!$I$3=1,'Input data'!$B5,IF('Input data'!$I$3=2,'Input data'!$C5,'Input data'!$D5))) -> 4.13 | C5: =IF(ISBLANK('Input data'!$B5),"",IFERROR((1+EXP(-$B$36*($A5-$B$35)))^-$B$37,0)) -> 0.03056523929 | D5: =IF(ISBLANK('Input data'!$B5),"",LS+(US-LS)*Xi_function) -> 4.157982307 | E5: =IF(ISBLANK('Input data'!$B5),"",IFERROR($B5-Fit_Burr,0)) -> -0.02798230713 | U5: -70 | V5: 0.001352020979 | W5: 2.095456061
A6: =IF(ISBLANK('Input data'!$A6),NA(),'Input data'!$A6) -> -15 | B6: =IF(ISBLANK('Input data'!$A6),NA(),IF('Input data'!$I$3=1,'Input data'!$B6,IF('Input data'!$I$3=2,'Input data'!$C6,'Input data'!$D6))) -> 10.21 | C6: =IF(ISBLANK('Input data'!$B6),"",IFERROR((1+EXP(-$B$36*($A6-$B$35)))^-$B$37,0)) -> 0.1388620732 | D6: =IF(ISBLANK('Input data'!$B6),"",LS+(US-LS)*Xi_function) -> 11.80400953 | E6: =IF(ISBLANK('Input data'!$B6),"",IFERROR($B6-Fit_Burr,0)) -> -1.594009527 | U6: -60 | V6: 0.003387758873 | W6: 2.239184246
A7: =IF(ISBLANK('Input data'!$A7),NA(),'Input data'!$A7) -> 0 | B7: =IF(ISBLANK('Input data'!$A7),NA(),IF('Input data'!$I$3=1,'Input data'!$B7,IF('Input data'!$I$3=2,'Input data'!$C7,'Input data'!$D7))) -> 27.99 | C7: =IF(ISBLANK('Input data'!$B7),"",IFERROR((1+EXP(-$B$36*($A7-$B$35)))^-$B$37,0)) -> 0.3261678305 | D7: =IF(ISBLANK('Input data'!$B7),"",LS+(US-LS)*Xi_function) -> 25.02826425 | E7: =IF(ISBLANK('Input data'!$B7),"",IFERROR($B7-Fit_Burr,0)) -> 2.961735745 | U7: -50 | V7: 0.008353291934 | W7: 2.589763294
A8: =IF(ISBLANK('Input data'!$A8),NA(),'Input data'!$A8) -> 10 | B8: =IF(ISBLANK('Input data'!$A8),NA(),IF('Input data'!$I$3=1,'Input data'!$B8,IF('Input data'!$I$3=2,'Input data'!$C8,'Input data'!$D8))) -> 34.25 | C8: =IF(ISBLANK('Input data'!$B8),"",IFERROR((1+EXP(-$B$36*($A8-$B$35)))^-$B$37,0)) -> 0.487825924 | D8: =IF(ISBLANK('Input data'!$B8),"",LS+(US-LS)*Xi_function) -> 36.4417298 | E8: =IF(ISBLANK('Input data'!$B8),"",IFERROR($B8-Fit_Burr,0)) -> -2.191729798 | U8: -40 | V8: 0.02004087617 | W8: 3.41493596
A9: =IF(ISBLANK('Input data'!$A9),NA(),'Input data'!$A9) -> 21 | B9: =IF(ISBLANK('Input data'!$A9),NA(),IF('Input data'!$I$3=1,'Input data'!$B9,IF('Input data'!$I$3=2,'Input data'!$C9,'Input data'!$D9))) -> 48.86 | C9: =IF(ISBLANK('Input data'!$B9),"",IFERROR((1+EXP(-$B$36*($A9-$B$35)))^-$B$37,0)) -> 0.6585435382 | D9: =IF(ISBLANK('Input data'!$B9),"",LS+(US-LS)*Xi_function) -> 48.49482015 | E9: =IF(ISBLANK('Input data'!$B9),"",IFERROR($B9-Fit_Burr,0)) -> 0.3651798475 | U9: -30 | V9: 0.04596827382 | W9: 5.245475052
A10: =IF(ISBLANK('Input data'!$A10),NA(),'Input data'!$A10) -> 40 | B10: =IF(ISBLANK('Input data'!$A10),NA(),IF('Input data'!$I$3=1,'Input data'!$B10,IF('Input data'!$I$3=2,'Input data'!$C10,'Input data'!$D10))) -> 61.88 | C10: =IF(ISBLANK('Input data'!$B10),"",IFERROR((1+EXP(-$B$36*($A10-$B$35)))^-$B$37,0)) -> 0.8601344296 | D10: =IF(ISBLANK('Input data'!$B10),"",LS+(US-LS)*Xi_function) -> 62.72764107 | E10: =IF(ISBLANK('Input data'!$B10),"",IFERROR($B10-Fit_Burr,0)) -> -0.847641068 | U10: -20 | V10: 0.09834496463 | W10: 8.943400366
A11: =IF(ISBLANK('Input data'!$A11),NA(),'Input data'!$A11) -> 76 | B11: =IF(ISBLANK('Input data'!$A11),NA(),IF('Input data'!$I$3=1,'Input data'!$B11,IF('Input data'!$I$3=2,'Input data'!$C11,'Input data'!$D11))) -> 74.29 | C11: =IF(ISBLANK('Input data'!$B11),"",IFERROR((1+EXP(-$B$36*($A11-$B$35)))^-$B$37,0)) -> 0.9808345792 | D11: =IF(ISBLANK('Input data'!$B11),"",LS+(US-LS)*Xi_function) -> 71.24937338 | E11: =IF(ISBLANK('Input data'!$B11),"",IFERROR($B11-Fit_Burr,0)) -> 3.040626621 | U11: -10 | V11: 0.1905907804 | W11: 15.45618558
A12: =IF(ISBLANK('Input data'!$A12),NA(),'Input data'!$A12) -> 100 | B12: =IF(ISBLANK('Input data'!$A12),NA(),IF('Input data'!$I$3=1,'Input data'!$B12,IF('Input data'!$I$3=2,'Input data'!$C12,'Input data'!$D12))) -> 75.22 | C12: =IF(ISBLANK('Input data'!$B12),"",IFERROR((1+EXP(-$B$36*($A12-$B$35)))^-$B$37,0)) -> 0.995196505 | D12: =IF(ISBLANK('Input data'!$B12),"",LS+(US-LS)*Xi_function) -> 72.26336124 | E12: =IF(ISBLANK('Input data'!$B12),"",IFERROR($B12-Fit_Burr,0)) -> 2.956638757 | U12: 0 | V12: 0.3261678305 | W12: 25.02826425
A13: =IF(ISBLANK('Input data'!$A13),NA(),'Input data'!$A13) -> 148 | B13: =IF(ISBLANK('Input data'!$A13),NA(),IF('Input data'!$I$3=1,'Input data'!$B13,IF('Input data'!$I$3=2,'Input data'!$C13,'Input data'!$D13))) -> 71.5 | C13: =IF(ISBLANK('Input data'!$B13),"",IFERROR((1+EXP(-$B$36*($A13-$B$35)))^-$B$37,0)) -> 0.9997041903 | D13: =IF(ISBLANK('Input data'!$B13),"",LS+(US-LS)*Xi_function) -> 72.58161509 | E13: =IF(ISBLANK('Input data'!$B13),"",IFERROR($B13-Fit_Burr,0)) -> -1.081615094 | U13: 10 | V13: 0.487825924 | W13: 36.4417298
A14: =IF(ISBLANK('Input data'!$A14),NA(),'Input data'!$A14) -> 198 | B14: =IF(ISBLANK('Input data'!$A14),NA(),IF('Input data'!$I$3=1,'Input data'!$B14,IF('Input data'!$I$3=2,'Input data'!$C14,'Input data'!$D14))) -> 69.4 | C14: =IF(ISBLANK('Input data'!$B14),"",IFERROR((1+EXP(-$B$36*($A14-$B$35)))^-$B$37,0)) -> 0.9999838389 | D14: =IF(ISBLANK('Input data'!$B14),"",LS+(US-LS)*Xi_function) -> 72.60135898 | E14: =IF(ISBLANK('Input data'!$B14),"",IFERROR($B14-Fit_Burr,0)) -> -3.201358983 | U14: 20 | V14: 0.6442846563 | W14: 47.48810745
A15: =IF(ISBLANK('Input data'!$A15),NA(),'Input data'!$A15) ->  | B15: =IF(ISBLANK('Input data'!$A15),NA(),IF('Input data'!$I$3=1,'Input data'!$B15,IF('Input data'!$I$3=2,'Input data'!$C15,'Input data'!$D15))) ->  | C15: =IF(ISBLANK('Input data'!$B15),"",IFERROR((1+EXP(-$B$36*($A15-$B$35)))^-$B$37,0)) ->  | D15: =IF(ISBLANK('Input data'!$B15),"",LS+(US-LS)*Xi_function) ->  | E15: =IF(ISBLANK('Input data'!$B15),"",IFERROR($B15-Fit_Burr,0)) ->  | U15: 30 | V15: 0.7708077311 | W15: 56.42095283
A16: =IF(ISBLANK('Input data'!$A16),NA(),'Input data'!$A16) ->  | B16: =IF(ISBLANK('Input data'!$A16),NA(),IF('Input data'!$I$3=1,'Input data'!$B16,IF('Input data'!$I$3=2,'Input data'!$C16,'Input data'!$D16))) ->  | C16: =IF(ISBLANK('Input data'!$B16),"",IFERROR((1+EXP(-$B$36*($A16-$B$35)))^-$B$37,0)) ->  | D16: =IF(ISBLANK('Input data'!$B16),"",LS+(US-LS)*Xi_function) ->  | E16: =IF(ISBLANK('Input data'!$B16),"",IFERROR($B16-Fit_Burr,0)) ->  | U16: 40 | V16: 0.8601344296 | W16: 62.72764107
A17: =IF(ISBLANK('Input data'!$A17),NA(),'Input data'!$A17) ->  | B17: =IF(ISBLANK('Input data'!$A17),NA(),IF('Input data'!$I$3=1,'Input data'!$B17,IF('Input data'!$I$3=2,'Input data'!$C17,'Input data'!$D17))) ->  | C17: =IF(ISBLANK('Input data'!$B17),"",IFERROR((1+EXP(-$B$36*($A17-$B$35)))^-$B$37,0)) ->  | D17: =IF(ISBLANK('Input data'!$B17),"",LS+(US-LS)*Xi_function) ->  | E17: =IF(ISBLANK('Input data'!$B17),"",IFERROR($B17-Fit_Burr,0)) ->  | U17: 50 | V17: 0.9176323373 | W17: 66.78713709
A18: =IF(ISBLANK('Input data'!$A18),NA(),'Input data'!$A18) ->  | B18: =IF(ISBLANK('Input data'!$A18),NA(),IF('Input data'!$I$3=1,'Input data'!$B18,IF('Input data'!$I$3=2,'Input data'!$C18,'Input data'!$D18))) ->  | C18: =IF(ISBLANK('Input data'!$B18),"",IFERROR((1+EXP(-$B$36*($A18-$B$35)))^-$B$37,0)) ->  | D18: =IF(ISBLANK('Input data'!$B18),"",LS+(US-LS)*Xi_function) ->  | E18: =IF(ISBLANK('Input data'!$B18),"",IFERROR($B18-Fit_Burr,0)) ->  | U18: 60 | V18: 0.9525433252 | W18: 69.25194012
A19: =IF(ISBLANK('Input data'!$A19),NA(),'Input data'!$A19) ->  | B19: =IF(ISBLANK('Input data'!$A19),NA(),IF('Input data'!$I$3=1,'Input data'!$B19,IF('Input data'!$I$3=2,'Input data'!$C19,'Input data'!$D19))) ->  | C19: =IF(ISBLANK('Input data'!$B19),"",IFERROR((1+EXP(-$B$36*($A19-$B$35)))^-$B$37,0)) ->  | D19: =IF(ISBLANK('Input data'!$B19),"",LS+(US-LS)*Xi_function) ->  | E19: =IF(ISBLANK('Input data'!$B19),"",IFERROR($B19-Fit_Burr,0)) ->  | U19: 70 | V19: 0.9730087232 | W19: 70.69684838
A20: =IF(ISBLANK('Input data'!$A20),NA(),'Input data'!$A20) ->  | B20: =IF(ISBLANK('Input data'!$A20),NA(),IF('Input data'!$I$3=1,'Input data'!$B20,IF('Input data'!$I$3=2,'Input data'!$C20,'Input data'!$D20))) ->  | C20: =IF(ISBLANK('Input data'!$B20),"",IFERROR((1+EXP(-$B$36*($A20-$B$35)))^-$B$37,0)) ->  | D20: =IF(ISBLANK('Input data'!$B20),"",LS+(US-LS)*Xi_function) ->  | E20: =IF(ISBLANK('Input data'!$B20),"",IFERROR($B20-Fit_Burr,0)) ->  | U20: 80 | V20: 0.9847626105 | W20: 71.52670221
A21: =IF(ISBLANK('Input data'!$A21),NA(),'Input data'!$A21) ->  | B21: =IF(ISBLANK('Input data'!$A21),NA(),IF('Input data'!$I$3=1,'Input data'!$B21,IF('Input data'!$I$3=2,'Input data'!$C21,'Input data'!$D21))) ->  | C21: =IF(ISBLANK('Input data'!$B21),"",IFERROR((1+EXP(-$B$36*($A21-$B$35)))^-$B$37,0)) ->  | D21: =IF(ISBLANK('Input data'!$B21),"",LS+(US-LS)*Xi_function) ->  | E21: =IF(ISBLANK('Input data'!$B21),"",IFERROR($B21-Fit_Burr,0)) ->  | U21: 90 | V21: 0.9914344667 | W21: 71.99775193
A22: =IF(ISBLANK('Input data'!$A22),NA(),'Input data'!$A22) ->  | B22: =IF(ISBLANK('Input data'!$A22),NA(),IF('Input data'!$I$3=1,'Input data'!$B22,IF('Input data'!$I$3=2,'Input data'!$C22,'Input data'!$D22))) ->  | C22: =IF(ISBLANK('Input data'!$B22),"",IFERROR((1+EXP(-$B$36*($A22-$B$35)))^-$B$37,0)) ->  | D22: =IF(ISBLANK('Input data'!$B22),"",LS+(US-LS)*Xi_function) ->  | E22: =IF(ISBLANK('Input data'!$B22),"",IFERROR($B22-Fit_Burr,0)) ->  | U22: 100 | V22: 0.995196505 | W22: 72.26336124
A23: =IF(ISBLANK('Input data'!$A23),NA(),'Input data'!$A23) ->  | B23: =IF(ISBLANK('Input data'!$A23),NA(),IF('Input data'!$I$3=1,'Input data'!$B23,IF('Input data'!$I$3=2,'Input data'!$C23,'Input data'!$D23))) ->  | C23: =IF(ISBLANK('Input data'!$B23),"",IFERROR((1+EXP(-$B$36*($A23-$B$35)))^-$B$37,0)) ->  | D23: =IF(ISBLANK('Input data'!$B23),"",LS+(US-LS)*Xi_function) ->  | E23: =IF(ISBLANK('Input data'!$B23),"",IFERROR($B23-Fit_Burr,0)) ->  | U23: 110 | V23: 0.9973098589 | W23: 72.41256931
A24: =IF(ISBLANK('Input data'!$A24),NA(),'Input data'!$A24) ->  | B24: =IF(ISBLANK('Input data'!$A24),NA(),IF('Input data'!$I$3=1,'Input data'!$B24,IF('Input data'!$I$3=2,'Input data'!$C24,'Input data'!$D24))) ->  | C24: =IF(ISBLANK('Input data'!$B24),"",IFERROR((1+EXP(-$B$36*($A24-$B$35)))^-$B$37,0)) ->  | D24: =IF(ISBLANK('Input data'!$B24),"",LS+(US-LS)*Xi_function) ->  | E24: =IF(ISBLANK('Input data'!$B24),"",IFERROR($B24-Fit_Burr,0)) ->  | U24: 120 | V24: 0.9984945562 | W24: 72.4962119
A25: =IF(ISBLANK('Input data'!$A25),NA(),'Input data'!$A25) ->  | B25: =IF(ISBLANK('Input data'!$A25),NA(),IF('Input data'!$I$3=1,'Input data'!$B25,IF('Input data'!$I$3=2,'Input data'!$C25,'Input data'!$D25))) ->  | C25: =IF(ISBLANK('Input data'!$B25),"",IFERROR((1+EXP(-$B$36*($A25-$B$35)))^-$B$37,0)) ->  | D25: =IF(ISBLANK('Input data'!$B25),"",LS+(US-LS)*Xi_function) ->  | E25: =IF(ISBLANK('Input data'!$B25),"",IFERROR($B25-Fit_Burr,0)) ->  | U25: 130 | V25: 0.9991578873 | W25: 72.54304474
A26: =IF(ISBLANK('Input data'!$A26),NA(),'Input data'!$A26) ->  | B26: =IF(ISBLANK('Input data'!$A26),NA(),IF('Input data'!$I$3=1,'Input data'!$B26,IF('Input data'!$I$3=2,'Input data'!$C26,'Input data'!$D26))) ->  | C26: =IF(ISBLANK('Input data'!$B26),"",IFERROR((1+EXP(-$B$36*($A26-$B$35)))^-$B$37,0)) ->  | D26: =IF(ISBLANK('Input data'!$B26),"",LS+(US-LS)*Xi_function) ->  | E26: =IF(ISBLANK('Input data'!$B26),"",IFERROR($B26-Fit_Burr,0)) ->  | U26: 140 | V26: 0.9995290519 | W26: 72.56924989
A27: =IF(ISBLANK('Input data'!$A27),NA(),'Input data'!$A27) ->  | B27: =IF(ISBLANK('Input data'!$A27),NA(),IF('Input data'!$I$3=1,'Input data'!$B27,IF('Input data'!$I$3=2,'Input data'!$C27,'Input data'!$D27))) ->  | C27: =IF(ISBLANK('Input data'!$B27),"",IFERROR((1+EXP(-$B$36*($A27-$B$35)))^-$B$37,0)) ->  | D27: =IF(ISBLANK('Input data'!$B27),"",LS+(US-LS)*Xi_function) ->  | E27: =IF(ISBLANK('Input data'!$B27),"",IFERROR($B27-Fit_Burr,0)) ->  | U27: 150 | V27: 0.9997366591 | W27: 72.58390747
A28: =IF(ISBLANK('Input data'!$A28),NA(),'Input data'!$A28) ->  | B28: =IF(ISBLANK('Input data'!$A28),NA(),IF('Input data'!$I$3=1,'Input data'!$B28,IF('Input data'!$I$3=2,'Input data'!$C28,'Input data'!$D28))) ->  | C28: =IF(ISBLANK('Input data'!$B28),"",IFERROR((1+EXP(-$B$36*($A28-$B$35)))^-$B$37,0)) ->  | D28: =IF(ISBLANK('Input data'!$B28),"",LS+(US-LS)*Xi_function) ->  | E28: =IF(ISBLANK('Input data'!$B28),"",IFERROR($B28-Fit_Burr,0)) ->  | U28: 160 | V28: 0.9998527581 | W28: 72.59210435
A29: =IF(ISBLANK('Input data'!$A29),NA(),'Input data'!$A29) ->  | B29: =IF(ISBLANK('Input data'!$A29),NA(),IF('Input data'!$I$3=1,'Input data'!$B29,IF('Input data'!$I$3=2,'Input data'!$C29,'Input data'!$D29))) ->  | C29: =IF(ISBLANK('Input data'!$B29),"",IFERROR((1+EXP(-$B$36*($A29-$B$35)))^-$B$37,0)) ->  | D29: =IF(ISBLANK('Input data'!$B29),"",LS+(US-LS)*Xi_function) ->  | E29: =IF(ISBLANK('Input data'!$B29),"",IFERROR($B29-Fit_Burr,0)) ->  | U29: 170 | V29: 0.999917676 | W29: 72.59668772
A30: =IF(ISBLANK('Input data'!$A30),NA(),'Input data'!$A30) ->  | B30: =IF(ISBLANK('Input data'!$A30),NA(),IF('Input data'!$I$3=1,'Input data'!$B30,IF('Input data'!$I$3=2,'Input data'!$C30,'Input data'!$D30))) ->  | C30: =IF(ISBLANK('Input data'!$B30),"",IFERROR((1+EXP(-$B$36*($A30-$B$35)))^-$B$37,0)) ->  | D30: =IF(ISBLANK('Input data'!$B30),"",LS+(US-LS)*Xi_function) ->  | E30: =IF(ISBLANK('Input data'!$B30),"",IFERROR($B30-Fit_Burr,0)) ->  | U30: 180 | V30: 0.9999539731 | W30: 72.59925039
A31: =IF(ISBLANK('Input data'!$A31),NA(),'Input data'!$A31) ->  | B31: =IF(ISBLANK('Input data'!$A31),NA(),IF('Input data'!$I$3=1,'Input data'!$B31,IF('Input data'!$I$3=2,'Input data'!$C31,'Input data'!$D31))) ->  | C31: =IF(ISBLANK('Input data'!$B31),"",IFERROR((1+EXP(-$B$36*($A31-$B$35)))^-$B$37,0)) ->  | D31: =IF(ISBLANK('Input data'!$B31),"",LS+(US-LS)*Xi_function) ->  | E31: =IF(ISBLANK('Input data'!$B31),"",IFERROR($B31-Fit_Burr,0)) ->  | U31: 190 | V31: 0.999974267 | W31: 72.60068318
A32: =IF(ISBLANK('Input data'!$A32),NA(),'Input data'!$A32) ->  | B32: =IF(ISBLANK('Input data'!$A32),NA(),IF('Input data'!$I$3=1,'Input data'!$B32,IF('Input data'!$I$3=2,'Input data'!$C32,'Input data'!$D32))) ->  | C32: =IF(ISBLANK('Input data'!$B32),"",IFERROR((1+EXP(-$B$36*($A32-$B$35)))^-$B$37,0)) ->  | D32: =IF(ISBLANK('Input data'!$B32),"",LS+(US-LS)*Xi_function) ->  | E32: =IF(ISBLANK('Input data'!$B32),"",IFERROR($B32-Fit_Burr,0)) ->  | U32: 200 | V32: 0.9999856131 | W32: 72.60148425
U33: 210 | V33: =IFERROR((1+EXP(-k_Burr*($U33-T0_Burr)))^(-m_Burr),0) -> 0.9999919566 | W33: =LS+(US-LS)*$V33 -> 72.60193211
U34: =$U33+10 -> 220 | V34: =IFERROR((1+EXP(-k_Burr*($U34-T0_Burr)))^(-m_Burr),0) -> 0.9999955031 | W34: =LS+(US-LS)*$V34 -> 72.60218251
A35: T0 = | B35: 0.0001839701323 | C35: °C | D35: DBTT = | E35: =T0_Burr-LN((0.5^(-1/m_Burr))-1)/k_Burr -> 10.74161052 | F35: °C | H35: =DBTT_Burr -> 10.74161052 | I35: 0 | U35: 230 | V35: 0.9999974859 | W35: 72.6023225
A36: k = | B36: 0.05814666006 | H36: =DBTT_Burr -> 10.74161052 | I36: =(LS+US)/2 -> 37.30125 | U36: 240 | V36: 0.9999985944 | W36: 72.60240076
A37: m = | B37: 1.616301125 | U37: 250 | V37: 0.9999992142 | W37: 72.60244452
U38: 260 | V38: 0.9999995607 | W38: 72.60246898
A39: SSR = | B39: =SUMSQ(E3:E32) -> 48.87833068 | C39: (sum of square residuals) | G39: Characteristic T | U39: 270 | V39: 0.9999997544 | W39: 72.60248266
A40: df = | B40: =COUNT(A3:A32)-3 -> 9 | C40: (degrees of freedom) | G40: =IF(Fit_index=1,"KV (J)",IF(Fit_index=2,"LE (mm)","SFA (%)")) -> KV (J) | H40: T (°C) | U40: 280 | V40: 0.9999998627 | W40: 72.6024903
A41: RMSE = | B41: =SQRT(SSR_Burr/df_Burr) -> 2.330434644 | C41: =IF('Input data'!$I$3=1,"J (root mean square error)",IF('Input data'!$I$3=2,"mm (root mean square error)","% (root mean square error)")) -> J (root mean square error) | G41: 28 | H41: =IF(ISBLANK($G41),"",IFERROR(T0_Burr-$J41/k_Burr,"N/A")) -> 2.687806458 | J41: =LN((($G41-LS)/(US-LS))^(-1/m_Burr)-1) -> -0.1562762712 | U41: 290 | V41: 0.9999999232 | W41: 72.60249458
G42: 41 | H42: =IF(ISBLANK($G42),"",IFERROR(T0_Burr-$J42/k_Burr,"N/A")) -> 13.97588803 | J42: =LN((($G42-LS)/(US-LS))^(-1/m_Burr)-1) -> -0.812640513 | U42: 300 | V42: 0.9999999571 | W42: 72.60249697
U43: 310 | V43: 0.999999976 | W43: 72.60249831
U44: 320 | V44: 0.9999999866 | W44: 72.60249905
B45: AIC = | C45: =2*(COUNT(B35:B37)+1)+COUNT(Temperatures)*LN(SSR_Burr/COUNT(Temperatures)) -> 24.85313016 | D45: (Akaike Information Criterion) | U45: 330 | V45: 0.9999999925 | W45: 72.60249947
B46: BIC = | C46: =(COUNT(B35:B37)+1)*LN(COUNT(Temperatures))+COUNT(Temperatures)*LN(SSR_Burr/COUNT(Temperatures)) -> 26.79275676 | D46: (Bayesian Information Criterion) | U46: 340 | V46: 0.9999999958 | W46: 72.6024997
U47: 350 | V47: 0.9999999977 | W47: 72.60249983
U48: 360 | V48: 0.9999999987 | W48: 72.60249991
U49: 370 | V49: 0.9999999993 | W49: 72.60249995
U50: 380 | V50: 0.9999999996 | W50: 72.60249997
U51: 390 | V51: 0.9999999998 | W51: 72.60249998
U52: 400 | V52: 0.9999999999 | W52: 72.60249999
W57: =NORMSINV(0.05) -> -1.644853627 | X57: =PERCENTILE($AV$3:$AV$32,0.05) -> 
W58: =NORMSINV(0.95) -> 1.644853627 | X58: =PERCENTILE($AV$3:$AV$32,0.95) -> 

Sheet ACT
A1: T | B1: =IF('Input data'!$I$3=1,"KV",IF('Input data'!$I$3=2,"LE","SFA")) -> KV | C1: Fit | D1: Residual | T1: T (°C) | U1: Curve
A2: (°C) | B2: =IF('Input data'!$I$3=1,"(J)",IF('Input data'!$I$3=2,"(mm)","(%)")) -> (J) | C2: =IF('Input data'!$I$3=1,"(J)",IF('Input data'!$I$3=2,"(mm)","(%)")) -> (J) | D2: =IF('Input data'!$I$3=1,"(J)",IF('Input data'!$I$3=2,"(mm)","(%)")) -> (J) | T2: -100 | U2: =(LS+US)/2+(US-LS)/PI()*ATAN(PI()*(T2-$B$35)/(2*$B$36)) -> 4.640724155
A3: =IF(ISBLANK('Input data'!$A3),NA(),'Input data'!$A3) -> -80 | B3: =IF(ISBLANK('Input data'!$A3),NA(),IF('Input data'!$I$3=1,'Input data'!$B3,IF('Input data'!$I$3=2,'Input data'!$C3,'Input data'!$D3))) -> 2.4 | C3: =IF(ISBLANK('Input data'!$B3),"",(LS+US)/2+(US-LS)/PI()*ATAN(PI()*($A3-DBTT_ARCTAN)/(2*C_ARCTAN))) -> 5.213188632 | D3: =IF(ISBLANK('Input data'!$B3),"",$B3-Fit_ARCTAN) -> -2.813188632 | T3: =T2+10 -> -90 | U3: 4.899120688
A4: =IF(ISBLANK('Input data'!$A4),NA(),'Input data'!$A4) -> -50 | B4: =IF(ISBLANK('Input data'!$A4),NA(),IF('Input data'!$I$3=1,'Input data'!$B4,IF('Input data'!$I$3=2,'Input data'!$C4,'Input data'!$D4))) -> 4.13 | C4: =IF(ISBLANK('Input data'!$B4),"",(LS+US)/2+(US-LS)/PI()*ATAN(PI()*($A4-DBTT_ARCTAN)/(2*C_ARCTAN))) -> 6.751264954 | D4: =IF(ISBLANK('Input data'!$B4),"",$B4-Fit_ARCTAN) -> -2.621264954 | T4: =T3+10 -> -80 | U4: 5.213188632
A5: =IF(ISBLANK('Input data'!$A5),NA(),'Input data'!$A5) -> -35 | B5: =IF(ISBLANK('Input data'!$A5),NA(),IF('Input data'!$I$3=1,'Input data'!$B5,IF('Input data'!$I$3=2,'Input data'!$C5,'Input data'!$D5))) -> 4.13 | C5: =IF(ISBLANK('Input data'!$B5),"",(LS+US)/2+(US-LS)/PI()*ATAN(PI()*($A5-DBTT_ARCTAN)/(2*C_ARCTAN))) -> 8.227728231 | D5: =IF(ISBLANK('Input data'!$B5),"",$B5-Fit_ARCTAN) -> -4.097728231 | T5: -70 | U5: 5.602917434
A6: =IF(ISBLANK('Input data'!$A6),NA(),'Input data'!$A6) -> -15 | B6: =IF(ISBLANK('Input data'!$A6),NA(),IF('Input data'!$I$3=1,'Input data'!$B6,IF('Input data'!$I$3=2,'Input data'!$C6,'Input data'!$D6))) -> 10.21 | C6: =IF(ISBLANK('Input data'!$B6),"",(LS+US)/2+(US-LS)/PI()*ATAN(PI()*($A6-DBTT_ARCTAN)/(2*C_ARCTAN))) -> 12.46020454 | D6: =IF(ISBLANK('Input data'!$B6),"",$B6-Fit_ARCTAN) -> -2.250204544 | T6: -60 | U6: 6.099043849
A7: =IF(ISBLANK('Input data'!$A7),NA(),'Input data'!$A7) -> 0 | B7: =IF(ISBLANK('Input data'!$A7),NA(),IF('Input data'!$I$3=1,'Input data'!$B7,IF('Input data'!$I$3=2,'Input data'!$C7,'Input data'!$D7))) -> 27.99 | C7: =IF(ISBLANK('Input data'!$B7),"",(LS+US)/2+(US-LS)/PI()*ATAN(PI()*($A7-DBTT_ARCTAN)/(2*C_ARCTAN))) -> 21.50162406 | D7: =IF(ISBLANK('Input data'!$B7),"",$B7-Fit_ARCTAN) -> 6.488375936 | T7: -50 | U7: 6.751264954
A8: =IF(ISBLANK('Input data'!$A8),NA(),'Input data'!$A8) -> 10 | B8: =IF(ISBLANK('Input data'!$A8),NA(),IF('Input data'!$I$3=1,'Input data'!$B8,IF('Input data'!$I$3=2,'Input data'!$C8,'Input data'!$D8))) -> 34.25 | C8: =IF(ISBLANK('Input data'!$B8),"",(LS+US)/2+(US-LS)/PI()*ATAN(PI()*($A8-DBTT_ARCTAN)/(2*C_ARCTAN))) -> 35.39282537 | D8: =IF(ISBLANK('Input data'!$B8),"",$B8-Fit_ARCTAN) -> -1.142825372 | T8: -40 | U8: 7.645134294
A9: =IF(ISBLANK('Input data'!$A9),NA(),'Input data'!$A9) -> 21 | B9: =IF(ISBLANK('Input data'!$A9),NA(),IF('Input data'!$I$3=1,'Input data'!$B9,IF('Input data'!$I$3=2,'Input data'!$C9,'Input data'!$D9))) -> 48.86 | C9: =IF(ISBLANK('Input data'!$B9),"",(LS+US)/2+(US-LS)/PI()*ATAN(PI()*($A9-DBTT_ARCTAN)/(2*C_ARCTAN))) -> 51.81289628 | D9: =IF(ISBLANK('Input data'!$B9),"",$B9-Fit_ARCTAN) -> -2.952896282 | T9: -30 | U9: 8.940148631
A10: =IF(ISBLANK('Input data'!$A10),NA(),'Input data'!$A10) -> 40 | B10: =IF(ISBLANK('Input data'!$A10),NA(),IF('Input data'!$I$3=1,'Input data'!$B10,IF('Input data'!$I$3=2,'Input data'!$C10,'Input data'!$D10))) -> 61.88 | C10: =IF(ISBLANK('Input data'!$B10),"",(LS+US)/2+(US-LS)/PI()*ATAN(PI()*($A10-DBTT_ARCTAN)/(2*C_ARCTAN))) -> 63.02228089 | D10: =IF(ISBLANK('Input data'!$B10),"",$B10-Fit_ARCTAN) -> -1.142280892 | T10: -20 | U10: 10.96560361
A11: =IF(ISBLANK('Input data'!$A11),NA(),'Input data'!$A11) -> 76 | B11: =IF(ISBLANK('Input data'!$A11),NA(),IF('Input data'!$I$3=1,'Input data'!$B11,IF('Input data'!$I$3=2,'Input data'!$C11,'Input data'!$D11))) -> 74.29 | C11: =IF(ISBLANK('Input data'!$B11),"",(LS+US)/2+(US-LS)/PI()*ATAN(PI()*($A11-DBTT_ARCTAN)/(2*C_ARCTAN))) -> 68.11960013 | D11: =IF(ISBLANK('Input data'!$B11),"",$B11-Fit_ARCTAN) -> 6.170399869 | T11: -10 | U11: 14.49173474
A12: =IF(ISBLANK('Input data'!$A12),NA(),'Input data'!$A12) -> 100 | B12: =IF(ISBLANK('Input data'!$A12),NA(),IF('Input data'!$I$3=1,'Input data'!$B12,IF('Input data'!$I$3=2,'Input data'!$C12,'Input data'!$D12))) -> 75.22 | C12: =IF(ISBLANK('Input data'!$B12),"",(LS+US)/2+(US-LS)/PI()*ATAN(PI()*($A12-DBTT_ARCTAN)/(2*C_ARCTAN))) -> 69.30971841 | D12: =IF(ISBLANK('Input data'!$B12),"",$B12-Fit_ARCTAN) -> 5.910281593 | T12: 0 | U12: 21.50162406
A13: =IF(ISBLANK('Input data'!$A13),NA(),'Input data'!$A13) -> 148 | B13: =IF(ISBLANK('Input data'!$A13),NA(),IF('Input data'!$I$3=1,'Input data'!$B13,IF('Input data'!$I$3=2,'Input data'!$C13,'Input data'!$D13))) -> 71.5 | C13: =IF(ISBLANK('Input data'!$B13),"",(LS+US)/2+(US-LS)/PI()*ATAN(PI()*($A13-DBTT_ARCTAN)/(2*C_ARCTAN))) -> 70.45549924 | D13: =IF(ISBLANK('Input data'!$B13),"",$B13-Fit_ARCTAN) -> 1.044500755 | T13: 10 | U13: 35.39282537
A14: =IF(ISBLANK('Input data'!$A14),NA(),'Input data'!$A14) -> 198 | B14: =IF(ISBLANK('Input data'!$A14),NA(),IF('Input data'!$I$3=1,'Input data'!$B14,IF('Input data'!$I$3=2,'Input data'!$C14,'Input data'!$D14))) -> 69.4 | C14: =IF(ISBLANK('Input data'!$B14),"",(LS+US)/2+(US-LS)/PI()*ATAN(PI()*($A14-DBTT_ARCTAN)/(2*C_ARCTAN))) -> 71.02770257 | D14: =IF(ISBLANK('Input data'!$B14),"",$B14-Fit_ARCTAN) -> -1.627702567 | T14: 20 | U14: 50.67943825
A15: =IF(ISBLANK('Input data'!$A15),NA(),'Input data'!$A15) ->  | B15: =IF(ISBLANK('Input data'!$A15),NA(),IF('Input data'!$I$3=1,'Input data'!$B15,IF('Input data'!$I$3=2,'Input data'!$C15,'Input data'!$D15))) ->  | C15: =IF(ISBLANK('Input data'!$B15),"",(LS+US)/2+(US-LS)/PI()*ATAN(PI()*($A15-DBTT_ARCTAN)/(2*C_ARCTAN))) ->  | D15: =IF(ISBLANK('Input data'!$B15),"",$B15-Fit_ARCTAN) ->  | T15: 30 | U15: 58.95850245
A16: =IF(ISBLANK('Input data'!$A16),NA(),'Input data'!$A16) ->  | B16: =IF(ISBLANK('Input data'!$A16),NA(),IF('Input data'!$I$3=1,'Input data'!$B16,IF('Input data'!$I$3=2,'Input data'!$C16,'Input data'!$D16))) ->  | C16: =IF(ISBLANK('Input data'!$B16),"",(LS+US)/2+(US-LS)/PI()*ATAN(PI()*($A16-DBTT_ARCTAN)/(2*C_ARCTAN))) ->  | D16: =IF(ISBLANK('Input data'!$B16),"",$B16-Fit_ARCTAN) ->  | T16: 40 | U16: 63.02228089
A17: =IF(ISBLANK('Input data'!$A17),NA(),'Input data'!$A17) ->  | B17: =IF(ISBLANK('Input data'!$A17),NA(),IF('Input data'!$I$3=1,'Input data'!$B17,IF('Input data'!$I$3=2,'Input data'!$C17,'Input data'!$D17))) ->  | C17: =IF(ISBLANK('Input data'!$B17),"",(LS+US)/2+(US-LS)/PI()*ATAN(PI()*($A17-DBTT_ARCTAN)/(2*C_ARCTAN))) ->  | D17: =IF(ISBLANK('Input data'!$B17),"",$B17-Fit_ARCTAN) ->  | T17: 50 | U17: 65.29063406
A18: =IF(ISBLANK('Input data'!$A18),NA(),'Input data'!$A18) ->  | B18: =IF(ISBLANK('Input data'!$A18),NA(),IF('Input data'!$I$3=1,'Input data'!$B18,IF('Input data'!$I$3=2,'Input data'!$C18,'Input data'!$D18))) ->  | C18: =IF(ISBLANK('Input data'!$B18),"",(LS+US)/2+(US-LS)/PI()*ATAN(PI()*($A18-DBTT_ARCTAN)/(2*C_ARCTAN))) ->  | D18: =IF(ISBLANK('Input data'!$B18),"",$B18-Fit_ARCTAN) ->  | T18: 60 | U18: 66.71089573
A19: =IF(ISBLANK('Input data'!$A19),NA(),'Input data'!$A19) ->  | B19: =IF(ISBLANK('Input data'!$A19),NA(),IF('Input data'!$I$3=1,'Input data'!$B19,IF('Input data'!$I$3=2,'Input data'!$C19,'Input data'!$D19))) ->  | C19: =IF(ISBLANK('Input data'!$B19),"",(LS+US)/2+(US-LS)/PI()*ATAN(PI()*($A19-DBTT_ARCTAN)/(2*C_ARCTAN))) ->  | D19: =IF(ISBLANK('Input data'!$B19),"",$B19-Fit_ARCTAN) ->  | T19: 70 | U19: 67.67666043
A20: =IF(ISBLANK('Input data'!$A20),NA(),'Input data'!$A20) ->  | B20: =IF(ISBLANK('Input data'!$A20),NA(),IF('Input data'!$I$3=1,'Input data'!$B20,IF('Input data'!$I$3=2,'Input data'!$C20,'Input data'!$D20))) ->  | C20: =IF(ISBLANK('Input data'!$B20),"",(LS+US)/2+(US-LS)/PI()*ATAN(PI()*($A20-DBTT_ARCTAN)/(2*C_ARCTAN))) ->  | D20: =IF(ISBLANK('Input data'!$B20),"",$B20-Fit_ARCTAN) ->  | T20: 80 | U20: 68.37363593
A21: =IF(ISBLANK('Input data'!$A21),NA(),'Input data'!$A21) ->  | B21: =IF(ISBLANK('Input data'!$A21),NA(),IF('Input data'!$I$3=1,'Input data'!$B21,IF('Input data'!$I$3=2,'Input data'!$C21,'Input data'!$D21))) ->  | C21: =IF(ISBLANK('Input data'!$B21),"",(LS+US)/2+(US-LS)/PI()*ATAN(PI()*($A21-DBTT_ARCTAN)/(2*C_ARCTAN))) ->  | D21: =IF(ISBLANK('Input data'!$B21),"",$B21-Fit_ARCTAN) ->  | T21: 90 | U21: 68.89939756
A22: =IF(ISBLANK('Input data'!$A22),NA(),'Input data'!$A22) ->  | B22: =IF(ISBLANK('Input data'!$A22),NA(),IF('Input data'!$I$3=1,'Input data'!$B22,IF('Input data'!$I$3=2,'Input data'!$C22,'Input data'!$D22))) ->  | C22: =IF(ISBLANK('Input data'!$B22),"",(LS+US)/2+(US-LS)/PI()*ATAN(PI()*($A22-DBTT_ARCTAN)/(2*C_ARCTAN))) ->  | D22: =IF(ISBLANK('Input data'!$B22),"",$B22-Fit_ARCTAN) ->  | T22: 100 | U22: 69.30971841
A23: =IF(ISBLANK('Input data'!$A23),NA(),'Input data'!$A23) ->  | B23: =IF(ISBLANK('Input data'!$A23),NA(),IF('Input data'!$I$3=1,'Input data'!$B23,IF('Input data'!$I$3=2,'Input data'!$C23,'Input data'!$D23))) ->  | C23: =IF(ISBLANK('Input data'!$B23),"",(LS+US)/2+(US-LS)/PI()*ATAN(PI()*($A23-DBTT_ARCTAN)/(2*C_ARCTAN))) ->  | D23: =IF(ISBLANK('Input data'!$B23),"",$B23-Fit_ARCTAN) ->  | T23: 110 | U23: 69.63865495
A24: =IF(ISBLANK('Input data'!$A24),NA(),'Input data'!$A24) ->  | B24: =IF(ISBLANK('Input data'!$A24),NA(),IF('Input data'!$I$3=1,'Input data'!$B24,IF('Input data'!$I$3=2,'Input data'!$C24,'Input data'!$D24))) ->  | C24: =IF(ISBLANK('Input data'!$B24),"",(LS+US)/2+(US-LS)/PI()*ATAN(PI()*($A24-DBTT_ARCTAN)/(2*C_ARCTAN))) ->  | D24: =IF(ISBLANK('Input data'!$B24),"",$B24-Fit_ARCTAN) ->  | T24: 120 | U24: 69.90812822
A25: =IF(ISBLANK('Input data'!$A25),NA(),'Input data'!$A25) ->  | B25: =IF(ISBLANK('Input data'!$A25),NA(),IF('Input data'!$I$3=1,'Input data'!$B25,IF('Input data'!$I$3=2,'Input data'!$C25,'Input data'!$D25))) ->  | C25: =IF(ISBLANK('Input data'!$B25),"",(LS+US)/2+(US-LS)/PI()*ATAN(PI()*($A25-DBTT_ARCTAN)/(2*C_ARCTAN))) ->  | D25: =IF(ISBLANK('Input data'!$B25),"",$B25-Fit_ARCTAN) ->  | T25: 130 | U25: 70.13286542
A26: =IF(ISBLANK('Input data'!$A26),NA(),'Input data'!$A26) ->  | B26: =IF(ISBLANK('Input data'!$A26),NA(),IF('Input data'!$I$3=1,'Input data'!$B26,IF('Input data'!$I$3=2,'Input data'!$C26,'Input data'!$D26))) ->  | C26: =IF(ISBLANK('Input data'!$B26),"",(LS+US)/2+(US-LS)/PI()*ATAN(PI()*($A26-DBTT_ARCTAN)/(2*C_ARCTAN))) ->  | D26: =IF(ISBLANK('Input data'!$B26),"",$B26-Fit_ARCTAN) ->  | T26: 140 | U26: 70.32311719
A27: =IF(ISBLANK('Input data'!$A27),NA(),'Input data'!$A27) ->  | B27: =IF(ISBLANK('Input data'!$A27),NA(),IF('Input data'!$I$3=1,'Input data'!$B27,IF('Input data'!$I$3=2,'Input data'!$C27,'Input data'!$D27))) ->  | C27: =IF(ISBLANK('Input data'!$B27),"",(LS+US)/2+(US-LS)/PI()*ATAN(PI()*($A27-DBTT_ARCTAN)/(2*C_ARCTAN))) ->  | D27: =IF(ISBLANK('Input data'!$B27),"",$B27-Fit_ARCTAN) ->  | T27: 150 | U27: 70.4862335
A28: =IF(ISBLANK('Input data'!$A28),NA(),'Input data'!$A28) ->  | B28: =IF(ISBLANK('Input data'!$A28),NA(),IF('Input data'!$I$3=1,'Input data'!$B28,IF('Input data'!$I$3=2,'Input data'!$C28,'Input data'!$D28))) ->  | C28: =IF(ISBLANK('Input data'!$B28),"",(LS+US)/2+(US-LS)/PI()*ATAN(PI()*($A28-DBTT_ARCTAN)/(2*C_ARCTAN))) ->  | D28: =IF(ISBLANK('Input data'!$B28),"",$B28-Fit_ARCTAN) ->  | T28: 160 | U28: 70.6276193
A29: =IF(ISBLANK('Input data'!$A29),NA(),'Input data'!$A29) ->  | B29: =IF(ISBLANK('Input data'!$A29),NA(),IF('Input data'!$I$3=1,'Input data'!$B29,IF('Input data'!$I$3=2,'Input data'!$C29,'Input data'!$D29))) ->  | C29: =IF(ISBLANK('Input data'!$B29),"",(LS+US)/2+(US-LS)/PI()*ATAN(PI()*($A29-DBTT_ARCTAN)/(2*C_ARCTAN))) ->  | D29: =IF(ISBLANK('Input data'!$B29),"",$B29-Fit_ARCTAN) ->  | T29: 170 | U29: 70.75133658
A30: =IF(ISBLANK('Input data'!$A30),NA(),'Input data'!$A30) ->  | B30: =IF(ISBLANK('Input data'!$A30),NA(),IF('Input data'!$I$3=1,'Input data'!$B30,IF('Input data'!$I$3=2,'Input data'!$C30,'Input data'!$D30))) ->  | C30: =IF(ISBLANK('Input data'!$B30),"",(LS+US)/2+(US-LS)/PI()*ATAN(PI()*($A30-DBTT_ARCTAN)/(2*C_ARCTAN))) ->  | D30: =IF(ISBLANK('Input data'!$B30),"",$B30-Fit_ARCTAN) ->  | T30: 180 | U30: 70.86049625
A31: =IF(ISBLANK('Input data'!$A31),NA(),'Input data'!$A31) ->  | B31: =IF(ISBLANK('Input data'!$A31),NA(),IF('Input data'!$I$3=1,'Input data'!$B31,IF('Input data'!$I$3=2,'Input data'!$C31,'Input data'!$D31))) ->  | C31: =IF(ISBLANK('Input data'!$B31),"",(LS+US)/2+(US-LS)/PI()*ATAN(PI()*($A31-DBTT_ARCTAN)/(2*C_ARCTAN))) ->  | D31: =IF(ISBLANK('Input data'!$B31),"",$B31-Fit_ARCTAN) ->  | T31: 190 | U31: 70.95752063
A32: =IF(ISBLANK('Input data'!$A32),NA(),'Input data'!$A32) ->  | B32: =IF(ISBLANK('Input data'!$A32),NA(),IF('Input data'!$I$3=1,'Input data'!$B32,IF('Input data'!$I$3=2,'Input data'!$C32,'Input data'!$D32))) ->  | C32: =IF(ISBLANK('Input data'!$B32),"",(LS+US)/2+(US-LS)/PI()*ATAN(PI()*($A32-DBTT_ARCTAN)/(2*C_ARCTAN))) ->  | D32: =IF(ISBLANK('Input data'!$B32),"",$B32-Fit_ARCTAN) ->  | T32: 200 | U32: 71.0443237
T33: =T32+10 -> 210 | U33: 71.12243761
T34: 220 | U34: =(LS+US)/2+(US-LS)/PI()*ATAN(PI()*(T34-$B$35)/(2*$B$36)) -> 71.19310323
A35: DBTT = | B35: 11.1165738 | C35: °C | T35: 230 | U35: 71.25733617
A36: C = | B36: 20.60425005 | C36: °C | T36: 240 | U36: 71.31597563
E37: =DBTT_ARCTAN -> 11.1165738 | F37: 0 | T37: 250 | U37: 71.36972105
E38: =DBTT_ARCTAN -> 11.1165738 | F38: =(LS+US)/2 -> 37.30125 | T38: 260 | U38: 71.41916002
A39: SSR = | B39: =SUMSQ(Residual_ARCTAN) -> 166.8149921 | C39: (sum of square residuals) | F39: Characteristic T | T39: 270 | U39: 71.46478977
A40: df = | B40: =COUNT(Fit_ARCTAN)-2 -> 10 | C40: (degrees of freedom) | F40: =IF(Fit_index=1,"KV (J)",IF(Fit_index=2,"LE (mm)","SFA (%)")) -> KV (J) | G40: T (°C) | T40: 280 | U40: 71.50703389
A41: RMSE = | B41: =SQRT($B$39/$B$40) -> 4.084299109 | C41: =IF('Input data'!$I$3=1,"J (root mean square error)",IF('Input data'!$I$3=2,"mm (root mean square error)","% (root mean square error)")) -> J (root mean square error) | F41: 28 | G41: =IF(ISBLANK($F41),"",IF(OR($F41>US,$F41<LS),"N/A",DBTT_ARCTAN+2*C_ARCTAN*$I41/PI())) -> 5.354923325 | I41: =TAN(PI()*($F41-A)/(US-LS)) -> -0.4392481834 | T41: 290 | U41: 71.54625543
F42: 41 | G42: =IF(ISBLANK($F42),"",IF(OR($F42>US,$F42<LS),"N/A",DBTT_ARCTAN+2*C_ARCTAN*$I42/PI())) -> 13.29512617 | I42: =TAN(PI()*($F42-A)/(US-LS)) -> 0.1660852517 | T42: 300 | U42: 71.58276737
T43: 310 | U43: 71.61684095
T44: 320 | U44: 71.64871239
B45: AIC = | C45: =2*(COUNT(B35:B37)+1)+COUNT(Temperatures)*LN(SSR_Burr/COUNT(Temperatures)) -> 22.85313016 | D45: (Akaike Information Criterion) | T45: 330 | U45: 71.67858839
B46: BIC = | C46: =(COUNT(B35:B37)+1)*LN(COUNT(Temperatures))+COUNT(Temperatures)*LN(SSR_Burr/COUNT(Temperatures)) -> 24.30785011 | D46: (Bayesian Information Criterion) | T46: 340 | U46: 71.70665055
T47: 350 | U47: 71.7330591
T48: 360 | U48: 71.75795597
T49: 370 | U49: 71.78146728
T50: 380 | U50: 71.80370552
T51: 390 | U51: 71.82477132
T52: 400 | U52: 71.84475499
U57: =NORMSINV(0.05) -> -1.644853627 | V57: =PERCENTILE($AS$3:$AS$32,0.05) -> 
U58: =NORMSINV(0.95) -> 1.644853627 | V58: =PERCENTILE(AS3:AS32,0.95) -> 

Sheet KHT
A1: T | B1: =IF('Input data'!$I$3=1,"KV",IF('Input data'!$I$3=2,"LE","SFA")) -> KV | C1: FitT ≤ T0 | D1: FitT > T0 | E1: Fit | F1: Residual | V1: T (°C) | W1: Fit1 | X1: Fit2 | Y1: Curve
A2: (°C) | B2: =IF('Input data'!$I$3=1,"(J)",IF('Input data'!$I$3=2,"(mm)","(%)")) -> (J) | C2: =IF('Input data'!$I$3=1,"(J)",IF('Input data'!$I$3=2,"(mm)","(%)")) -> (J) | D2: =IF('Input data'!$I$3=1,"(J)",IF('Input data'!$I$3=2,"(mm)","(%)")) -> (J) | E2: =IF('Input data'!$I$3=1,"(J)",IF('Input data'!$I$3=2,"(mm)","(%)")) -> (J) | F2: =IF('Input data'!$I$3=1,"(J)",IF('Input data'!$I$3=2,"(mm)","(%)")) -> (J) | V2: -100 | W2: =LS+(US-LS)/(1+$B$37)*EXP((1+$B$37)/(2*$B$36)*($V2-$B$35)) -> 2.216673171 | X2: =US-$B$37*(US-LS)/(1+$B$37)*EXP(-(1+$B$37)/(2*$B$36*$B$37)*($V2-$B$35)) -> -5504.360222 | Y2: =IF($V2<$B$35,$W2,$X2) -> 2.216673171
A3: =IF(ISBLANK('Input data'!$A3),NA(),'Input data'!$A3) -> -80 | B3: =IF(ISBLANK('Input data'!$A3),NA(),IF('Input data'!$I$3=1,'Input data'!$B3,IF('Input data'!$I$3=2,'Input data'!$C3,'Input data'!$D3))) -> 2.4 | C3: =IF(ISBLANK(KV_data),"",LS+(US-LS)/(1+p_KASYM)*EXP((1+p_KASYM)/(2*C_KASYM)*($A3-T0_KASYM))) -> 2.541560152 | D3: =IF(ISBLANK(KV_data),"",US-p_KASYM*(US-LS)/(1+p_KASYM)*EXP(-(1+p_KASYM)/(2*C_KASYM*p_KASYM)*($A3-T0_KASYM))) -> -2171.087739 | E3: =IF(ISBLANK(KV_data),"",IF($A3<T0_KASYM,Fit1_KASYM,Fit2_KASYM)) -> 2.541560152 | F3: =IF(ISBLANK(KV_data),"",$B3-Fit_KASYM) -> -0.1415601516 | V3: =V2+10 -> -90 | W3: 2.342551537 | X3: -3464.76613 | Y3: 2.342551537
A4: =IF(ISBLANK('Input data'!$A4),NA(),'Input data'!$A4) -> -50 | B4: =IF(ISBLANK('Input data'!$A4),NA(),IF('Input data'!$I$3=1,'Input data'!$B4,IF('Input data'!$I$3=2,'Input data'!$C4,'Input data'!$D4))) -> 4.13 | C4: 4.139976697 | D4: -499.9438286 | E4: =IF(ISBLANK(KV_data),"",IF($A4<T0_KASYM,Fit1_KASYM,Fit2_KASYM)) -> 4.139976697 | F4: -0.009976696724 | V4: =V3+10 -> -80 | W4: 2.541560152 | X4: -2171.087739 | Y4: 2.541560152
A5: =IF(ISBLANK('Input data'!$A5),NA(),'Input data'!$A5) -> -35 | B5: =IF(ISBLANK('Input data'!$A5),NA(),IF('Input data'!$I$3=1,'Input data'!$B5,IF('Input data'!$I$3=2,'Input data'!$C5,'Input data'!$D5))) -> 4.13 | C5: 6.25392879 | D5: -216.6216157 | E5: 6.25392879 | F5: -2.12392879 | V5: -70 | W5: 2.856184738 | X5: -1350.53046 | Y5: 2.856184738
A6: =IF(ISBLANK('Input data'!$A6),NA(),'Input data'!$A6) -> -15 | B6: =IF(ISBLANK('Input data'!$A6),NA(),IF('Input data'!$I$3=1,'Input data'!$B6,IF('Input data'!$I$3=2,'Input data'!$C6,'Input data'!$D6))) -> 10.21 | C6: 12.63241153 | D6: -43.75641393 | E6: 12.63241153 | F6: -2.422411527 | V6: -60 | W6: 3.353593509 | X6: -830.0655184 | Y6: 3.353593509
A7: =IF(ISBLANK('Input data'!$A7),NA(),'Input data'!$A7) -> 0 | B7: =IF(ISBLANK('Input data'!$A7),NA(),IF('Input data'!$I$3=1,'Input data'!$B7,IF('Input data'!$I$3=2,'Input data'!$C7,'Input data'!$D7))) -> 27.99 | C7: 23.13552057 | D7: 13.82331951 | E7: 23.13552057 | F7: 4.854479425 | V7: -50 | W7: 4.139976697 | X7: -499.9438286 | Y7: 4.139976697
A8: =IF(ISBLANK('Input data'!$A8),NA(),'Input data'!$A8) -> 10 | B8: =IF(ISBLANK('Input data'!$A8),NA(),IF('Input data'!$I$3=1,'Input data'!$B8,IF('Input data'!$I$3=2,'Input data'!$C8,'Input data'!$D8))) -> 34.25 | C8: 35.41440484 | D8: 35.31990739 | E8: 35.41440484 | F8: -1.16440484 | V8: -40 | W8: 5.383216772 | X8: -290.5534906 | Y8: 5.383216772
A9: =IF(ISBLANK('Input data'!$A9),NA(),'Input data'!$A9) -> 21 | B9: =IF(ISBLANK('Input data'!$A9),NA(),IF('Input data'!$I$3=1,'Input data'!$B9,IF('Input data'!$I$3=2,'Input data'!$C9,'Input data'!$D9))) -> 48.86 | C9: 57.30273237 | D9: 50.00726088 | E9: 50.00726088 | F9: -1.147260882 | V9: -30 | W9: 7.348729145 | X9: -157.7409097 | Y9: 7.348729145
A10: =IF(ISBLANK('Input data'!$A10),NA(),'Input data'!$A10) -> 40 | B10: =IF(ISBLANK('Input data'!$A10),NA(),IF('Input data'!$I$3=1,'Input data'!$B10,IF('Input data'!$I$3=2,'Input data'!$C10,'Input data'!$D10))) -> 61.88 | C10: 134.0371292 | D10: 63.08870387 | E10: 63.08870387 | F10: -1.208703867 | V10: -20 | W10: 10.45612486 | X10: -73.50024303 | Y10: 10.45612486
A11: =IF(ISBLANK('Input data'!$A11),NA(),'Input data'!$A11) -> 76 | B11: =IF(ISBLANK('Input data'!$A11),NA(),IF('Input data'!$I$3=1,'Input data'!$B11,IF('Input data'!$I$3=2,'Input data'!$C11,'Input data'!$D11))) -> 74.29 | C11: 688.7693184 | D11: 70.75505668 | E11: 70.75505668 | F11: 3.534943322 | V11: -10 | W11: 15.36879206 | X11: -20.06788094 | Y11: 15.36879206
A12: =IF(ISBLANK('Input data'!$A12),NA(),'Input data'!$A12) -> 100 | B12: =IF(ISBLANK('Input data'!$A12),NA(),IF('Input data'!$I$3=1,'Input data'!$B12,IF('Input data'!$I$3=2,'Input data'!$C12,'Input data'!$D12))) -> 75.22 | C12: 2063.677632 | D12: 71.98298859 | E12: 71.98298859 | F12: 3.237011414 | V12: 0 | W12: 23.13552057 | X12: 13.82331951 | Y12: 23.13552057
A13: =IF(ISBLANK('Input data'!$A13),NA(),'Input data'!$A13) -> 148 | B13: =IF(ISBLANK('Input data'!$A13),NA(),IF('Input data'!$I$3=1,'Input data'!$B13,IF('Input data'!$I$3=2,'Input data'!$C13,'Input data'!$D13))) -> 71.5 | C13: 18581.77746 | D13: 72.53283644 | E13: 72.53283644 | F13: -1.032836436 | V13: 10 | W13: 35.41440484 | X13: 35.31990739 | Y13: 35.41440484
A14: =IF(ISBLANK('Input data'!$A14),NA(),'Input data'!$A14) -> 198 | B14: =IF(ISBLANK('Input data'!$A14),NA(),IF('Input data'!$I$3=1,'Input data'!$B14,IF('Input data'!$I$3=2,'Input data'!$C14,'Input data'!$D14))) -> 69.4 | C14: 183505.5257 | D14: 72.59534815 | E14: 72.59534815 | F14: -3.195348147 | V14: 20 | W14: 54.8268252 | X14: 48.95481216 | Y14: 48.95481216
A15: =IF(ISBLANK('Input data'!$A15),NA(),'Input data'!$A15) ->  | B15: =IF(ISBLANK('Input data'!$A15),NA(),IF('Input data'!$I$3=1,'Input data'!$B15,IF('Input data'!$I$3=2,'Input data'!$C15,'Input data'!$D15))) ->  | V15: 30 | W15: 85.51707815 | X15: 57.60319065 | Y15: 57.60319065
A16: =IF(ISBLANK('Input data'!$A16),NA(),'Input data'!$A16) ->  | B16: =IF(ISBLANK('Input data'!$A16),NA(),IF('Input data'!$I$3=1,'Input data'!$B16,IF('Input data'!$I$3=2,'Input data'!$C16,'Input data'!$D16))) ->  | V16: 40 | W16: 134.0371292 | X16: 63.08870387 | Y16: 63.08870387
A17: =IF(ISBLANK('Input data'!$A17),NA(),'Input data'!$A17) ->  | B17: =IF(ISBLANK('Input data'!$A17),NA(),IF('Input data'!$I$3=1,'Input data'!$B17,IF('Input data'!$I$3=2,'Input data'!$C17,'Input data'!$D17))) ->  | V17: 50 | W17: 210.7453712 | X17: 66.5680677 | Y17: 66.5680677
A18: =IF(ISBLANK('Input data'!$A18),NA(),'Input data'!$A18) ->  | B18: =IF(ISBLANK('Input data'!$A18),NA(),IF('Input data'!$I$3=1,'Input data'!$B18,IF('Input data'!$I$3=2,'Input data'!$C18,'Input data'!$D18))) ->  | V18: 60 | W18: 332.0180054 | X18: 68.77496652 | Y18: 68.77496652
A19: =IF(ISBLANK('Input data'!$A19),NA(),'Input data'!$A19) ->  | B19: =IF(ISBLANK('Input data'!$A19),NA(),IF('Input data'!$I$3=1,'Input data'!$B19,IF('Input data'!$I$3=2,'Input data'!$C19,'Input data'!$D19))) ->  | V19: 70 | W19: 523.7451445 | X19: 70.17476334 | Y19: 70.17476334
A20: =IF(ISBLANK('Input data'!$A20),NA(),'Input data'!$A20) ->  | B20: =IF(ISBLANK('Input data'!$A20),NA(),IF('Input data'!$I$3=1,'Input data'!$B20,IF('Input data'!$I$3=2,'Input data'!$C20,'Input data'!$D20))) ->  | V20: 80 | W20: 826.8580119 | X20: 71.06262966 | Y20: 71.06262966
A21: =IF(ISBLANK('Input data'!$A21),NA(),'Input data'!$A21) ->  | B21: =IF(ISBLANK('Input data'!$A21),NA(),IF('Input data'!$I$3=1,'Input data'!$B21,IF('Input data'!$I$3=2,'Input data'!$C21,'Input data'!$D21))) ->  | V21: 90 | W21: 1306.067219 | X21: 71.62578753 | Y21: 71.62578753
A22: =IF(ISBLANK('Input data'!$A22),NA(),'Input data'!$A22) ->  | B22: =IF(ISBLANK('Input data'!$A22),NA(),IF('Input data'!$I$3=1,'Input data'!$B22,IF('Input data'!$I$3=2,'Input data'!$C22,'Input data'!$D22))) ->  | V22: 100 | W22: 2063.677632 | X22: 71.98298859 | Y22: 71.98298859
A23: =IF(ISBLANK('Input data'!$A23),NA(),'Input data'!$A23) ->  | B23: =IF(ISBLANK('Input data'!$A23),NA(),IF('Input data'!$I$3=1,'Input data'!$B23,IF('Input data'!$I$3=2,'Input data'!$C23,'Input data'!$D23))) ->  | V23: 110 | W23: 3261.429111 | X23: 72.20955489 | Y23: 72.20955489
A24: =IF(ISBLANK('Input data'!$A24),NA(),'Input data'!$A24) ->  | B24: =IF(ISBLANK('Input data'!$A24),NA(),IF('Input data'!$I$3=1,'Input data'!$B24,IF('Input data'!$I$3=2,'Input data'!$C24,'Input data'!$D24))) ->  | V24: 120 | W24: 5155.02585 | X24: 72.35326188 | Y24: 72.35326188
A25: =IF(ISBLANK('Input data'!$A25),NA(),'Input data'!$A25) ->  | B25: =IF(ISBLANK('Input data'!$A25),NA(),IF('Input data'!$I$3=1,'Input data'!$B25,IF('Input data'!$I$3=2,'Input data'!$C25,'Input data'!$D25))) ->  | V25: 130 | W25: 8148.725854 | X25: 72.44441268 | Y25: 72.44441268
A26: =IF(ISBLANK('Input data'!$A26),NA(),'Input data'!$A26) ->  | B26: =IF(ISBLANK('Input data'!$A26),NA(),IF('Input data'!$I$3=1,'Input data'!$B26,IF('Input data'!$I$3=2,'Input data'!$C26,'Input data'!$D26))) ->  | V26: 140 | W26: 12881.64471 | X26: 72.50222801 | Y26: 72.50222801
A27: =IF(ISBLANK('Input data'!$A27),NA(),'Input data'!$A27) ->  | B27: =IF(ISBLANK('Input data'!$A27),NA(),IF('Input data'!$I$3=1,'Input data'!$B27,IF('Input data'!$I$3=2,'Input data'!$C27,'Input data'!$D27))) ->  | V27: 150 | W27: 20364.19837 | X27: 72.53889925 | Y27: 72.53889925
A28: =IF(ISBLANK('Input data'!$A28),NA(),'Input data'!$A28) ->  | B28: =IF(ISBLANK('Input data'!$A28),NA(),IF('Input data'!$I$3=1,'Input data'!$B28,IF('Input data'!$I$3=2,'Input data'!$C28,'Input data'!$D28))) ->  | V28: 160 | W28: 32193.81365 | X28: 72.56215917 | Y28: 72.56215917
A29: =IF(ISBLANK('Input data'!$A29),NA(),'Input data'!$A29) ->  | B29: =IF(ISBLANK('Input data'!$A29),NA(),IF('Input data'!$I$3=1,'Input data'!$B29,IF('Input data'!$I$3=2,'Input data'!$C29,'Input data'!$D29))) ->  | D29: =IF(ISBLANK(KV_data),"",US-p_KASYM*(US-LS)/(1+p_KASYM)*EXP(-(1+p_KASYM)/(2*C_KASYM*p_KASYM)*($A29-T0_KASYM))) ->  | V29: 170 | W29: 50895.95788 | X29: 72.57691253 | Y29: 72.57691253
A30: =IF(ISBLANK('Input data'!$A30),NA(),'Input data'!$A30) ->  | B30: =IF(ISBLANK('Input data'!$A30),NA(),IF('Input data'!$I$3=1,'Input data'!$B30,IF('Input data'!$I$3=2,'Input data'!$C30,'Input data'!$D30))) ->  | V30: 180 | W30: 80463.29295 | X30: 72.58627032 | Y30: 72.58627032
A31: =IF(ISBLANK('Input data'!$A31),NA(),'Input data'!$A31) ->  | B31: =IF(ISBLANK('Input data'!$A31),NA(),IF('Input data'!$I$3=1,'Input data'!$B31,IF('Input data'!$I$3=2,'Input data'!$C31,'Input data'!$D31))) ->  | V31: 190 | W31: 127208.0561 | X31: 72.5922058 | Y31: 72.5922058
A32: =IF(ISBLANK('Input data'!$A32),NA(),'Input data'!$A32) ->  | B32: =IF(ISBLANK('Input data'!$A32),NA(),IF('Input data'!$I$3=1,'Input data'!$B32,IF('Input data'!$I$3=2,'Input data'!$C32,'Input data'!$D32))) ->  | V32: 200 | W32: 201109.6397 | X32: 72.59597057 | Y32: 72.59597057
V33: =V32+10 -> 210 | W33: 317945.0602 | X33: 72.5983585 | Y33: 72.5983585
E34: =T0_KASYM+2*C_KASYM/(1+p_KASYM)*LN((1+p_KASYM)/2) -> 11.19928916 | F34: =T0_KASYM-p_KASYM*2*C_KASYM/(1+p_KASYM)*LN((1+p_KASYM)/(2*p_KASYM)) -> 11.19949073 | V34: 220 | W34: =LS+(US-LS)/(1+$B$37)*EXP((1+$B$37)/(2*$B$36)*($V34-$B$35)) -> 502657.1437 | X34: =US-$B$37*(US-LS)/(1+$B$37)*EXP(-(1+$B$37)/(2*$B$36*$B$37)*($V34-$B$35)) -> 72.59987312 | Y34: =IF($V34<$B$35,$W34,$X34) -> 72.59987312
A35: T0 = | B35: 11.13295082 | C35: °C | D35: DBTT = | E35: =IF(AVERAGE(DBTT1_KASYM,DBTT2_KASYM)<T0_KASYM,DBTT1_KASYM,DBTT2_KASYM) -> 11.19949073 | F35: °C | V35: 230 | W35: 794679.4912 | X35: 72.60083382 | Y35: 72.60083382
A36: C = | B36: 21.89897376 | E36: =DBTT_KASYM -> 11.19949073 | F36: 0 | V36: 240 | W36: 1256355.034 | X36: 72.60144317 | Y36: 72.60144317
A37: p = | B37: 1.006086259 | E37: =DBTT_KASYM -> 11.19949073 | F37: =(LS+US)/2 -> 37.30125 | V37: 250 | W37: 1986245.432 | X37: 72.60182967 | Y37: 72.60182967
E38: =ABS(#REF!-#REF!) ->  | V38: =V37+10 -> 260 | W38: 3140172.686 | X38: 72.60207482 | Y38: 72.60207482
A39: SSR = | B39: =SUMSQ(F3:F32) -> 72.34933968 | C39: (sum of square residuals) | G39: Characteristic T | V39: 270 | W39: 4964485.093 | X39: 72.60223032 | Y39: 72.60223032
A40: df = | B40: =COUNT(A3:A32)-3 -> 9 | C40: (degrees of freedom) | G40: =IF(Fit_index=1,"KV (J)",IF(Fit_index=2,"LE (mm)","SFA (%)")) -> KV (J) | H40: T (°C) | V40: 280 | W40: 7848649.367 | X40: 72.60232895 | Y40: 72.60232895
A41: RMSE = | B41: =SQRT($B$39/$B$40) -> 2.835280501 | C41: =IF('Input data'!$I$3=1,"J (root mean square error)",IF('Input data'!$I$3=2,"mm (root mean square error)","% (root mean square error)")) -> J (root mean square error) | G41: 28 | H41: =IF(ISBLANK($G41),"",IF($G41>US,"N/A",IF(AVERAGE($J41,$K41)<T0_KASYM,$J41,$K41))) -> 4.522423369 | J41: =T0_KASYM+2*C_KASYM*LN(($G41-LS)*(1+p_KASYM)/(US-LS))/(1+p_KASYM) -> 4.522423369 | K41: =T0_KASYM-2*C_KASYM*p_KASYM*LN((US-$G41)*(1+p_KASYM)/(p_KASYM*(US-LS)))/(1+p_KASYM) -> 6.062405832 | V41: 290 | W41: 12408396.66 | X41: 72.6023915 | Y41: 72.6023915
G42: 41 | H42: =IF(ISBLANK($G42),"",IF($G42>US,"N/A",IF(AVERAGE($J42,$K42)<T0_KASYM,$J42,$K42))) -> 13.63066971 | J42: =T0_KASYM+2*C_KASYM*LN(($G42-LS)*(1+p_KASYM)/(US-LS))/(1+p_KASYM) -> 13.37475434 | K42: =T0_KASYM-2*C_KASYM*p_KASYM*LN((US-$G42)*(1+p_KASYM)/(p_KASYM*(US-LS)))/(1+p_KASYM) -> 13.63066971 | V42: 300 | W42: 19617173.06 | X42: 72.60243118 | Y42: 72.60243118
V43: 310 | W43: 31013957.54 | X43: 72.60245635 | Y43: 72.60245635
V44: 320 | W44: 49031813.76 | X44: 72.60247231 | Y44: 72.60247231
B45: AIC = | C45: =2*(COUNT(B35:B37)+1)+COUNT(Temperatures)*LN(SSR_KASYM/COUNT(Temperatures)) -> 29.55919612 | D45: (Akaike Information Criterion) | V45: 330 | W45: 77517317.1 | X45: 72.60248244 | Y45: 72.60248244
B46: BIC = | C46: =(COUNT(B35:B37)+1)*LN(COUNT(Temperatures))+COUNT(Temperatures)*LN(SSR_KASYM/COUNT(Temperatures)) -> 31.49882272 | D46: (Bayesian Information Criterion) | V46: 340 | W46: 122551748 | X46: 72.60248886 | Y46: 72.60248886
V47: 350 | W47: 193749365.3 | X47: 72.60249293 | Y47: 72.60249293
V48: 360 | W48: 306309924.2 | X48: 72.60249552 | Y48: 72.60249552
V49: 370 | W49: 484263624 | X49: 72.60249716 | Y49: 72.60249716
V50: 380 | W50: 765601239.9 | X50: 72.6024982 | Y50: 72.6024982
V51: 390 | W51: 1210384654 | X51: 72.60249886 | Y51: 72.60249886
V52: 400 | W52: 1913569276 | X52: 72.60249927 | Y52: 72.60249927
W57: =NORMSINV(0.05) -> -1.644853627 | X57: =PERCENTILE($AX$3:$AX$32,0.05) -> 
W58: =NORMSINV(0.95) -> 1.644853627 | X58: =PERCENTILE($AX$3:$AX$32,0.95) -> 

Sheet Summary of Results
A1: CHARPY DATA REGRESSION RESULTS
A3: Dataset ID: | C3: =Dataset_ID -> Sample dataset #1 (X52 steel) - KV
B5: Fitting | C5: DBTT | D5: C | E5: RMSE | F5: AIC | G5: BIC
B6: model | C6: (°C) | D6: (°C) | E6: =IF(Fit_index=1,"(J)",IF(Fit_index=2,"(mm)","(%)")) -> (J)
B7: HT | C7: =DBTT_TANH -> 11.27188439 | D7: =C_TANH -> 30.14286625 | E7: =RMSE_TANH -> 2.230598175 | F7: =AIC_TANH -> 23.06661627 | G7: =BIC_TANH -> 24.52133621 | H7: =RANK($E7,$E$7:$E$11) -> 5 | I7: =RANK($F7,$F$7:$F$11) -> 4 | J7: =RANK($G7,$G$7:$G$11) -> 4 | K7: =SUM(H7:J7) -> 13
B8: AHT | C8: =DBTT_ATANH -> 3.617416278 | D8: =C_ATANH -> 24.79344568 | E8: =RMSE_ATANH -> 5.226010318 | F8: =AIC_ATANH -> 44.23537052 | G8: =BIC_ATANH -> 46.17499712 | H8: =RANK($E8,$E$7:$E$11) -> 1 | I8: =RANK($F8,$F$7:$F$11) -> 1 | J8: =RANK($G8,$G$7:$G$11) -> 1 | K8: =SUM(H8:J8) -> 3
B9: BUR | C9: =DBTT_Burr -> 10.74161052 | E9: =RMSE_Burr -> 2.330434644 | F9: =AIC_BURR -> 24.85313016 | G9: =BIC_BURR -> 26.79275676 | H9: =RANK($E9,$E$7:$E$11) -> 4 | I9: =RANK($F9,$F$7:$F$11) -> 3 | J9: =RANK($G9,$G$7:$G$11) -> 3 | K9: =SUM(H9:J9) -> 10
B10: ACT | C10: =DBTT_ARCTAN -> 11.1165738 | D10: =C_ARCTAN -> 20.60425005 | E10: =RMSE_ARCTAN -> 4.084299109 | F10: =AIC_ARCTAN -> 22.85313016 | G10: =BIC_ARCTAN -> 24.30785011 | H10: =RANK($E10,$E$7:$E$11) -> 2 | I10: =RANK($F10,$F$7:$F$11) -> 5 | J10: =RANK($G10,$G$7:$G$11) -> 5 | K10: =SUM(H10:J10) -> 12
B11: KHT | C11: =DBTT_KASYM -> 11.19949073 | D11: =C_KASYM -> 21.89897376 | E11: =RMSE_KASYM -> 2.835280501 | F11: =AIC_KASYM -> 29.55919612 | G11: =BIC_KASYM -> 31.49882272 | H11: =RANK($E11,$E$7:$E$11) -> 3 | I11: =RANK($F11,$F$7:$F$11) -> 2 | J11: =RANK($G11,$G$7:$G$11) -> 2 | K11: =SUM(H11:J11) -> 7
B12: Mean | C12: =AVERAGE(DBTT_TANH,DBTT_ATANH,DBTT_Burr,DBTT_ARCTAN,DBTT_KASYM) -> 9.589395145 | D12: =AVERAGE(C_TANH,C_ATANH,C_ARCTAN,C_KASYM) -> 24.35988394 | E12: =AVERAGE(RMSE_TANH,RMSE_ATANH,RMSE_Burr,RMSE_ARCTAN,RMSE_KASYM) -> 3.341324549
B13: SD | C13: =STDEV(DBTT_TANH,DBTT_ATANH,DBTT_Burr,DBTT_ARCTAN,DBTT_KASYM) -> 3.344681763 | D13: =STDEV(C_TANH,C_ATANH,C_ARCTAN,C_KASYM) -> 4.234450971 | E13: =STDEV(RMSE_TANH,RMSE_ATANH,RMSE_Burr,RMSE_ARCTAN,RMSE_KASYM) -> 1.286054402
A15: Fitting Coefficients
A17: Fitting | B17: DBTT | C17: C | D17: D | E17: T0 | F17: k | G17: m | H17: p
A18: model | B18: (°C) | C18: (°C) | D18: (1/°C) | E18: (°C)
A19: HT | B19: =DBTT_TANH -> 11.27188439 | C19: =C_TANH -> 30.14286625
A20: AHT | B20: =DBTT_ATANH -> 3.617416278 | C20: =C_ATANH -> 24.79344568 | D20: =D_ATANH -> 0.3099180621
A21: BUR | E21: =T0_Burr -> 0.0001839701323 | F21: =k_Burr -> 0.05814666006 | G21: =m_Burr -> 1.616301125
A22: ACT | B22: =DBTT_ARCTAN -> 11.1165738 | C22: =C_ARCTAN -> 20.60425005
A23: KHT | C23: =C_KASYM -> 21.89897376 | E23: =T0_KASYM -> 11.13295082 | H23: =p_KASYM -> 1.006086259

Sheet Characteristic Temperatures
A1: CHARPY CHARACTERISTIC TEMPERATURES (°C)
A3: Dataset ID: | C3: =Dataset_ID -> Sample dataset #1 (X52 steel) - KV
A5: ='Input data'!B1 -> KV | B5: Fitting Model | G5: Mean | H5: SD
A6: ='Input data'!B2 -> (J) | B6: HT | C6: AHT | D6: BUR | E6: ACT | F6: KHT | G6: (°C) | H6: (°C)
A7: =IF(ISBLANK(HT!$F41),"",HT!$F41) -> 28 | B7: =HT!$G$41 -> 3.137931807 | C7: =AHT!$G$41 -> -2.835849748 | D7: =BUR!$H$41 -> 2.687806458 | E7: =ACT!$G$41 -> 5.354923325 | F7: =KHT!$H$41 -> 4.522423369 | G7: =IF(ISBLANK(HT!$F41),"",AVERAGE($B7:$F7)) -> 2.573447042 | H7: =IF(ISBLANK(HT!$F41),"",STDEV($B7:$F7)) -> 3.206529741 | I7: =SUM(G7:H7) -> 5.779976784
A8: =IF(ISBLANK(HT!$F42),"",HT!$F42) -> 41 | B8: =HT!$G$42 -> 14.44178981 | C8: =AHT!$G$42 -> 6.434473365 | D8: =BUR!$H$42 -> 13.97588803 | E8: =ACT!$G$42 -> 13.29512617 | F8: =KHT!$H$42 -> 13.63066971 | G8: =IF(ISBLANK(HT!$F42),"",AVERAGE($B8:$F8)) -> 12.35558942 | H8: =IF(ISBLANK(HT!$F42),"",STDEV($B8:$F8)) -> 3.33713103 | I8: =SUM(G8:H8) -> 15.69272045
